Workbook

Sheet Resumo
B2: Série | C2: Mês | D2: Data | E2: Preços | F2: Dias | G2: Taxa | H2: Contratos | I2: Variação | J2: DV01
C3: Vencimento | D3: Vencimento | E3: Futuros | F3: Úteis | G3: Pré | H3: em Aberto | I3: Quantidade
B4: ='Contratos em Aberto DI'!A2 -> Q22 | C4: =VLOOKUP(MID(B4,1,1),Legendas!$B$8:$D$19,2,FALSE) -> Agosto | D4: =WORKDAY(EOMONTH("15/"&VLOOKUP(MID(B4,1,1),Legendas!$B$8:$D$19,3,FALSE)&"/"&"20"&RIGHT(B4,2),-1),1,Feriados!$A$2:$A$937) -> 2022-08-01 | E4: =100000/(1+G4)^(F4/252) -> 99706.27938 | F4: =NETWORKDAYS('Curva de Juros Pré'!$B$1,D4,Feriados!$A$2:$A$937)-1 -> 6 | G4: =InterpolaPre(F4) -> 0.1315 | H4: =VLOOKUP(B4,'Contratos em Aberto DI'!$A$2:$C$40,2,FALSE) -> 742547 | I4: =VLOOKUP(B4,'Contratos em Aberto DI'!$A$2:$C$40,3,FALSE) -> 0 | J4: =100000/(1+G4+0.01%)^(F4/252)-100000/(1+G4)^(F4/252) -> -0.2097968748
B5: ='Contratos em Aberto DI'!A3 -> U22 | C5: =VLOOKUP(MID(B5,1,1),Legendas!$B$8:$D$19,2,FALSE) -> Setembro | D5: =WORKDAY(EOMONTH("15/"&VLOOKUP(MID(B5,1,1),Legendas!$B$8:$D$19,3,FALSE)&"/"&"20"&RIGHT(B5,2),-1),1,Feriados!$A$2:$A$937) -> 2022-09-01 | E5: =100000/(1+G5)^(F5/252) -> 98555.28512 | F5: =NETWORKDAYS('Curva de Juros Pré'!$B$1,D5,Feriados!$A$2:$A$937)-1 -> 29 | G5: =InterpolaPre(F5) -> 0.1348 | H5: =VLOOKUP(B5,'Contratos em Aberto DI'!$A$2:$C$40,2,FALSE) -> 518765 | I5: =VLOOKUP(B5,'Contratos em Aberto DI'!$A$2:$C$40,3,FALSE) -> 0 | J5: =100000/(1+G5+0.01%)^(F5/252)-100000/(1+G5)^(F5/252) -> -0.999393941
B6: ='Contratos em Aberto DI'!A4 -> V22 | C6: =VLOOKUP(MID(B6,1,1),Legendas!$B$8:$D$19,2,FALSE) -> Outubro | D6: =WORKDAY(EOMONTH("15/"&VLOOKUP(MID(B6,1,1),Legendas!$B$8:$D$19,3,FALSE)&"/"&"20"&RIGHT(B6,2),-1),1,Feriados!$A$2:$A$937) -> 2022-10-03 | E6: 97503.4138 | F6: =NETWORKDAYS('Curva de Juros Pré'!$B$1,D6,Feriados!$A$2:$A$937)-1 -> 50 | G6: =InterpolaPre(F6) -> 0.1359 | H6: =VLOOKUP(B6,'Contratos em Aberto DI'!$A$2:$C$40,2,FALSE) -> 2231457 | I6: =VLOOKUP(B6,'Contratos em Aberto DI'!$A$2:$C$40,3,FALSE) -> 0 | J6: -1.7030456
B7: ='Contratos em Aberto DI'!A5 -> X22 | C7: =VLOOKUP(MID(B7,1,1),Legendas!$B$8:$D$19,2,FALSE) -> Novembro | D7: =WORKDAY(EOMONTH("15/"&VLOOKUP(MID(B7,1,1),Legendas!$B$8:$D$19,3,FALSE)&"/"&"20"&RIGHT(B7,2),-1),1,Feriados!$A$2:$A$937) -> 2022-11-01 | E7: 96494.01391 | F7: =NETWORKDAYS('Curva de Juros Pré'!$B$1,D7,Feriados!$A$2:$A$937)-1 -> 70 | G7: =InterpolaPre(F7) -> 0.1371 | H7: =VLOOKUP(B7,'Contratos em Aberto DI'!$A$2:$C$40,2,FALSE) -> 325915 | I7: =VLOOKUP(B7,'Contratos em Aberto DI'!$A$2:$C$40,3,FALSE) -> 0 | J7: -2.357082654
B8: ='Contratos em Aberto DI'!A6 -> Z22 | C8: =VLOOKUP(MID(B8,1,1),Legendas!$B$8:$D$19,2,FALSE) -> Dezembro | D8: =WORKDAY(EOMONTH("15/"&VLOOKUP(MID(B8,1,1),Legendas!$B$8:$D$19,3,FALSE)&"/"&"20"&RIGHT(B8,2),-1),1,Feriados!$A$2:$A$937) -> 2022-12-01 | E8: 95488.08685 | F8: =NETWORKDAYS('Curva de Juros Pré'!$B$1,D8,Feriados!$A$2:$A$937)-1 -> 90 | G8: =InterpolaPre(F8) -> 0.138 | H8: =VLOOKUP(B8,'Contratos em Aberto DI'!$A$2:$C$40,2,FALSE) -> 264213 | I8: =VLOOKUP(B8,'Contratos em Aberto DI'!$A$2:$C$40,3,FALSE) -> 0 | J8: -2.996560176
B9: ='Contratos em Aberto DI'!A7 -> F23 | C9: =VLOOKUP(MID(B9,1,1),Legendas!$B$8:$D$19,2,FALSE) -> Janeiro | D9: =WORKDAY(EOMONTH("15/"&VLOOKUP(MID(B9,1,1),Legendas!$B$8:$D$19,3,FALSE)&"/"&"20"&RIGHT(B9,2),-1),1,Feriados!$A$2:$A$937) -> 2023-01-02 | E9: 94394.38091 | F9: =NETWORKDAYS('Curva de Juros Pré'!$B$1,D9,Feriados!$A$2:$A$937)-1 -> 112 | G9: =InterpolaPre(F9) -> 0.1386 | H9: =VLOOKUP(B9,'Contratos em Aberto DI'!$A$2:$C$40,2,FALSE) -> 5413628 | I9: =VLOOKUP(B9,'Contratos em Aberto DI'!$A$2:$C$40,3,FALSE) -> 0 | J9: -3.684384091
B10: ='Contratos em Aberto DI'!A8 -> G23 | C10: =VLOOKUP(MID(B10,1,1),Legendas!$B$8:$D$19,2,FALSE) -> Fevereiro | D10: =WORKDAY(EOMONTH("15/"&VLOOKUP(MID(B10,1,1),Legendas!$B$8:$D$19,3,FALSE)&"/"&"20"&RIGHT(B10,2),-1),1,Feriados!$A$2:$A$937) -> 2023-02-01 | E10: 93313.33988 | F10: =NETWORKDAYS('Curva de Juros Pré'!$B$1,D10,Feriados!$A$2:$A$937)-1 -> 134 | G10: =InterpolaPre(F10) -> 0.139 | H10: =VLOOKUP(B10,'Contratos em Aberto DI'!$A$2:$C$40,2,FALSE) -> 74540 | I10: =VLOOKUP(B10,'Contratos em Aberto DI'!$A$2:$C$40,3,FALSE) -> 0 | J10: -4.35607217
B11: ='Contratos em Aberto DI'!A9 -> H23 | C11: =VLOOKUP(MID(B11,1,1),Legendas!$B$8:$D$19,2,FALSE) -> Março | D11: =WORKDAY(EOMONTH("15/"&VLOOKUP(MID(B11,1,1),Legendas!$B$8:$D$19,3,FALSE)&"/"&"20"&RIGHT(B11,2),-1),1,Feriados!$A$2:$A$937) -> 2023-03-01 | E11: 92444.97885 | F11: =NETWORKDAYS('Curva de Juros Pré'!$B$1,D11,Feriados!$A$2:$A$937)-1 -> 152 | G11: =InterpolaPre(F11) -> 0.1391 | H11: =VLOOKUP(B11,'Contratos em Aberto DI'!$A$2:$C$40,2,FALSE) -> 75897 | I11: =VLOOKUP(B11,'Contratos em Aberto DI'!$A$2:$C$40,3,FALSE) -> 0 | J11: -4.894788856
B12: ='Contratos em Aberto DI'!A10 -> J23 | C12: =VLOOKUP(MID(B12,1,1),Legendas!$B$8:$D$19,2,FALSE) -> Abril | D12: =WORKDAY(EOMONTH("15/"&VLOOKUP(MID(B12,1,1),Legendas!$B$8:$D$19,3,FALSE)&"/"&"20"&RIGHT(B12,2),-1),1,Feriados!$A$2:$A$937) -> 2023-04-03 | E12: 91313.64056 | F12: =NETWORKDAYS('Curva de Juros Pré'!$B$1,D12,Feriados!$A$2:$A$937)-1 -> 175 | G12: =InterpolaPre(F12) -> 0.1398 | H12: =VLOOKUP(B12,'Contratos em Aberto DI'!$A$2:$C$40,2,FALSE) -> 630865 | I12: =VLOOKUP(B12,'Contratos em Aberto DI'!$A$2:$C$40,3,FALSE) -> 0 | J12: -5.563040645
B13: ='Contratos em Aberto DI'!A11 -> K23 | C13: =VLOOKUP(MID(B13,1,1),Legendas!$B$8:$D$19,2,FALSE) -> Maio | D13: =WORKDAY(EOMONTH("15/"&VLOOKUP(MID(B13,1,1),Legendas!$B$8:$D$19,3,FALSE)&"/"&"20"&RIGHT(B13,2),-1),1,Feriados!$A$2:$A$937) -> 2023-05-02 | E13: 90458.06384 | F13: =NETWORKDAYS('Curva de Juros Pré'!$B$1,D13,Feriados!$A$2:$A$937)-1 -> 193 | G13: =InterpolaPre(F13) -> 0.1399 | H13: =VLOOKUP(B13,'Contratos em Aberto DI'!$A$2:$C$40,2,FALSE) -> 29478 | I13: =VLOOKUP(B13,'Contratos em Aberto DI'!$A$2:$C$40,3,FALSE) -> 0 | J13: -6.077201894
B14: ='Contratos em Aberto DI'!A12 -> M23 | C14: =VLOOKUP(MID(B14,1,1),Legendas!$B$8:$D$19,2,FALSE) -> Junho | D14: =WORKDAY(EOMONTH("15/"&VLOOKUP(MID(B14,1,1),Legendas!$B$8:$D$19,3,FALSE)&"/"&"20"&RIGHT(B14,2),-1),1,Feriados!$A$2:$A$937) -> 2023-06-01 | E14: 89423.20392 | F14: =NETWORKDAYS('Curva de Juros Pré'!$B$1,D14,Feriados!$A$2:$A$937)-1 -> 215 | G14: =InterpolaPre(F14) -> 0.14 | H14: =VLOOKUP(B14,'Contratos em Aberto DI'!$A$2:$C$40,2,FALSE) -> 30150 | I14: =VLOOKUP(B14,'Contratos em Aberto DI'!$A$2:$C$40,3,FALSE) -> 0 | J14: -6.691877713
B15: ='Contratos em Aberto DI'!A13 -> N23 | C15: =VLOOKUP(MID(B15,1,1),Legendas!$B$8:$D$19,2,FALSE) -> Julho | D15: =WORKDAY(EOMONTH("15/"&VLOOKUP(MID(B15,1,1),Legendas!$B$8:$D$19,3,FALSE)&"/"&"20"&RIGHT(B15,2),-1),1,Feriados!$A$2:$A$937) -> 2023-07-03 | E15: 88437.57122 | F15: =NETWORKDAYS('Curva de Juros Pré'!$B$1,D15,Feriados!$A$2:$A$937)-1 -> 236 | G15: =InterpolaPre(F15) -> 0.1402 | H15: =VLOOKUP(B15,'Contratos em Aberto DI'!$A$2:$C$40,2,FALSE) -> 2172565 | I15: =VLOOKUP(B15,'Contratos em Aberto DI'!$A$2:$C$40,3,FALSE) -> 0 | J15: -7.263239316
B16: ='Contratos em Aberto DI'!A14 -> V23 | C16: =VLOOKUP(MID(B16,1,1),Legendas!$B$8:$D$19,2,FALSE) -> Outubro | D16: =WORKDAY(EOMONTH("15/"&VLOOKUP(MID(B16,1,1),Legendas!$B$8:$D$19,3,FALSE)&"/"&"20"&RIGHT(B16,2),-1),1,Feriados!$A$2:$A$937) -> 2023-10-02 | E16: 85610.75268 | F16: =NETWORKDAYS('Curva de Juros Pré'!$B$1,D16,Feriados!$A$2:$A$937)-1 -> 300 | G16: =InterpolaPre(F16) -> 0.1394 | H16: =VLOOKUP(B16,'Contratos em Aberto DI'!$A$2:$C$40,2,FALSE) -> 309489 | I16: =VLOOKUP(B16,'Contratos em Aberto DI'!$A$2:$C$40,3,FALSE) -> 0 | J16: -8.943985158
B17: ='Contratos em Aberto DI'!A15 -> F24 | C17: =VLOOKUP(MID(B17,1,1),Legendas!$B$8:$D$19,2,FALSE) -> Janeiro | D17: =WORKDAY(EOMONTH("15/"&VLOOKUP(MID(B17,1,1),Legendas!$B$8:$D$19,3,FALSE)&"/"&"20"&RIGHT(B17,2),-1),1,Feriados!$A$2:$A$937) -> 2024-01-02 | E17: 83084.36676 | F17: =NETWORKDAYS('Curva de Juros Pré'!$B$1,D17,Feriados!$A$2:$A$937)-1 -> 361 | G17: =InterpolaPre(F17) -> 0.1381 | H17: =VLOOKUP(B17,'Contratos em Aberto DI'!$A$2:$C$40,2,FALSE) -> 3745488 | I17: =VLOOKUP(B17,'Contratos em Aberto DI'!$A$2:$C$40,3,FALSE) -> 0 | J17: -10.45680819
B18: ='Contratos em Aberto DI'!A16 -> J24 | C18: =VLOOKUP(MID(B18,1,1),Legendas!$B$8:$D$19,2,FALSE) -> Abril | D18: =WORKDAY(EOMONTH("15/"&VLOOKUP(MID(B18,1,1),Legendas!$B$8:$D$19,3,FALSE)&"/"&"20"&RIGHT(B18,2),-1),1,Feriados!$A$2:$A$937) -> 2024-04-01 | E18: 80653.52419 | F18: =NETWORKDAYS('Curva de Juros Pré'!$B$1,D18,Feriados!$A$2:$A$937)-1 -> 422 | G18: =InterpolaPre(F18) -> 0.137 | H18: =VLOOKUP(B18,'Contratos em Aberto DI'!$A$2:$C$40,2,FALSE) -> 809212 | I18: =VLOOKUP(B18,'Contratos em Aberto DI'!$A$2:$C$40,3,FALSE) -> 0 | J18: -11.87746383
B19: ='Contratos em Aberto DI'!A17 -> N24 | C19: =VLOOKUP(MID(B19,1,1),Legendas!$B$8:$D$19,2,FALSE) -> Julho | D19: =WORKDAY(EOMONTH("15/"&VLOOKUP(MID(B19,1,1),Legendas!$B$8:$D$19,3,FALSE)&"/"&"20"&RIGHT(B19,2),-1),1,Feriados!$A$2:$A$937) -> 2024-07-01 | E19: 78317.76251 | F19: =NETWORKDAYS('Curva de Juros Pré'!$B$1,D19,Feriados!$A$2:$A$937)-1 -> 485 | G19: =InterpolaPre(F19) -> 0.1354 | H19: =VLOOKUP(B19,'Contratos em Aberto DI'!$A$2:$C$40,2,FALSE) -> 798669 | I19: =VLOOKUP(B19,'Contratos em Aberto DI'!$A$2:$C$40,3,FALSE) -> 0 | J19: -13.27384215
B20: ='Contratos em Aberto DI'!A18 -> V24 | C20: =VLOOKUP(MID(B20,1,1),Legendas!$B$8:$D$19,2,FALSE) -> Outubro | D20: =WORKDAY(EOMONTH("15/"&VLOOKUP(MID(B20,1,1),Legendas!$B$8:$D$19,3,FALSE)&"/"&"20"&RIGHT(B20,2),-1),1,Feriados!$A$2:$A$937) -> 2024-10-01 | E20: 75916.63367 | F20: =NETWORKDAYS('Curva de Juros Pré'!$B$1,D20,Feriados!$A$2:$A$937)-1 -> 551 | G20: =InterpolaPre(F20) -> 0.1343 | H20: =VLOOKUP(B20,'Contratos em Aberto DI'!$A$2:$C$40,2,FALSE) -> 98695 | I20: =VLOOKUP(B20,'Contratos em Aberto DI'!$A$2:$C$40,3,FALSE) -> 0 | J20: -14.63184425
B21: ='Contratos em Aberto DI'!A19 -> F25 | C21: =VLOOKUP(MID(B21,1,1),Legendas!$B$8:$D$19,2,FALSE) -> Janeiro | D21: =WORKDAY(EOMONTH("15/"&VLOOKUP(MID(B21,1,1),Legendas!$B$8:$D$19,3,FALSE)&"/"&"20"&RIGHT(B21,2),-1),1,Feriados!$A$2:$A$937) -> 2025-01-02 | E21: 73779.18844 | F21: =NETWORKDAYS('Curva de Juros Pré'!$B$1,D21,Feriados!$A$2:$A$937)-1 -> 615 | G21: =InterpolaPre(F21) -> 0.1327 | H21: =VLOOKUP(B21,'Contratos em Aberto DI'!$A$2:$C$40,2,FALSE) -> 2743818 | I21: =VLOOKUP(B21,'Contratos em Aberto DI'!$A$2:$C$40,3,FALSE) -> 0 | J21: -15.89379457
B22: ='Contratos em Aberto DI'!A20 -> J25 | C22: =VLOOKUP(MID(B22,1,1),Legendas!$B$8:$D$19,2,FALSE) -> Abril | D22: =WORKDAY(EOMONTH("15/"&VLOOKUP(MID(B22,1,1),Legendas!$B$8:$D$19,3,FALSE)&"/"&"20"&RIGHT(B22,2),-1),1,Feriados!$A$2:$A$937) -> 2025-04-01 | E22: 71637.96341 | F22: =NETWORKDAYS('Curva de Juros Pré'!$B$1,D22,Feriados!$A$2:$A$937)-1 -> 676 | G22: =InterpolaPre(F22) -> 0.1324 | H22: =VLOOKUP(B22,'Contratos em Aberto DI'!$A$2:$C$40,2,FALSE) -> 54361 | I22: =VLOOKUP(B22,'Contratos em Aberto DI'!$A$2:$C$40,3,FALSE) -> 0 | J22: -16.96754124
B23: ='Contratos em Aberto DI'!A21 -> N25 | C23: =VLOOKUP(MID(B23,1,1),Legendas!$B$8:$D$19,2,FALSE) -> Julho | D23: =WORKDAY(EOMONTH("15/"&VLOOKUP(MID(B23,1,1),Legendas!$B$8:$D$19,3,FALSE)&"/"&"20"&RIGHT(B23,2),-1),1,Feriados!$A$2:$A$937) -> 2025-07-01 | E23: 69603.77222 | F23: =NETWORKDAYS('Curva de Juros Pré'!$B$1,D23,Feriados!$A$2:$A$937)-1 -> 737 | G23: =InterpolaPre(F23) -> 0.1319 | H23: =VLOOKUP(B23,'Contratos em Aberto DI'!$A$2:$C$40,2,FALSE) -> 998238 | I23: =VLOOKUP(B23,'Contratos em Aberto DI'!$A$2:$C$40,3,FALSE) -> 0 | J23: -17.98110503
B24: ='Contratos em Aberto DI'!A22 -> V25 | C24: =VLOOKUP(MID(B24,1,1),Legendas!$B$8:$D$19,2,FALSE) -> Outubro | D24: =WORKDAY(EOMONTH("15/"&VLOOKUP(MID(B24,1,1),Legendas!$B$8:$D$19,3,FALSE)&"/"&"20"&RIGHT(B24,2),-1),1,Feriados!$A$2:$A$937) -> 2025-10-01 | E24: 67324.549 | F24: =NETWORKDAYS('Curva de Juros Pré'!$B$1,D24,Feriados!$A$2:$A$937)-1 -> 803 | G24: =InterpolaPre(F24) -> 0.1322 | H24: =VLOOKUP(B24,'Contratos em Aberto DI'!$A$2:$C$40,2,FALSE) -> 42558 | I24: =VLOOKUP(B24,'Contratos em Aberto DI'!$A$2:$C$40,3,FALSE) -> 0 | J24: -18.94458158
B25: ='Contratos em Aberto DI'!A23 -> F26 | C25: =VLOOKUP(MID(B25,1,1),Legendas!$B$8:$D$19,2,FALSE) -> Janeiro | D25: =WORKDAY(EOMONTH("15/"&VLOOKUP(MID(B25,1,1),Legendas!$B$8:$D$19,3,FALSE)&"/"&"20"&RIGHT(B25,2),-1),1,Feriados!$A$2:$A$937) -> 2026-01-02 | E25: 65281.97599 | F25: =NETWORKDAYS('Curva de Juros Pré'!$B$1,D25,Feriados!$A$2:$A$937)-1 -> 868 | G25: =InterpolaPre(F25) -> 0.1318 | H25: =VLOOKUP(B25,'Contratos em Aberto DI'!$A$2:$C$40,2,FALSE) -> 527100 | I25: =VLOOKUP(B25,'Contratos em Aberto DI'!$A$2:$C$40,3,FALSE) -> 0 | J25: -19.86357984
B26: ='Contratos em Aberto DI'!A24 -> J26 | C26: =VLOOKUP(MID(B26,1,1),Legendas!$B$8:$D$19,2,FALSE) -> Abril | D26: =WORKDAY(EOMONTH("15/"&VLOOKUP(MID(B26,1,1),Legendas!$B$8:$D$19,3,FALSE)&"/"&"20"&RIGHT(B26,2),-1),1,Feriados!$A$2:$A$937) -> 2026-04-01 | E26: 63333.88951 | F26: =NETWORKDAYS('Curva de Juros Pré'!$B$1,D26,Feriados!$A$2:$A$937)-1 -> 929 | G26: =InterpolaPre(F26) -> 0.1319 | H26: =VLOOKUP(B26,'Contratos em Aberto DI'!$A$2:$C$40,2,FALSE) -> 35645 | I26: =VLOOKUP(B26,'Contratos em Aberto DI'!$A$2:$C$40,3,FALSE) -> 0 | J26: -20.62307265
B27: ='Contratos em Aberto DI'!A25 -> N26 | C27: =VLOOKUP(MID(B27,1,1),Legendas!$B$8:$D$19,2,FALSE) -> Julho | D27: =WORKDAY(EOMONTH("15/"&VLOOKUP(MID(B27,1,1),Legendas!$B$8:$D$19,3,FALSE)&"/"&"20"&RIGHT(B27,2),-1),1,Feriados!$A$2:$A$937) -> 2026-07-01 | E27: 61483.97449 | F27: =NETWORKDAYS('Curva de Juros Pré'!$B$1,D27,Feriados!$A$2:$A$937)-1 -> 990 | G27: =InterpolaPre(F27) -> 0.1318 | H27: =VLOOKUP(B27,'Contratos em Aberto DI'!$A$2:$C$40,2,FALSE) -> 106995 | I27: =VLOOKUP(B27,'Contratos em Aberto DI'!$A$2:$C$40,3,FALSE) -> 0 | J27: -21.33695025
B28: ='Contratos em Aberto DI'!A26 -> V26 | C28: =VLOOKUP(MID(B28,1,1),Legendas!$B$8:$D$19,2,FALSE) -> Outubro | D28: =WORKDAY(EOMONTH("15/"&VLOOKUP(MID(B28,1,1),Legendas!$B$8:$D$19,3,FALSE)&"/"&"20"&RIGHT(B28,2),-1),1,Feriados!$A$2:$A$937) -> 2026-10-01 | E28: 59353.66478 | F28: =NETWORKDAYS('Curva de Juros Pré'!$B$1,D28,Feriados!$A$2:$A$937)-1 -> 1055 | G28: =InterpolaPre(F28) -> 0.1327 | H28: =VLOOKUP(B28,'Contratos em Aberto DI'!$A$2:$C$40,2,FALSE) -> 16438 | I28: =VLOOKUP(B28,'Contratos em Aberto DI'!$A$2:$C$40,3,FALSE) -> 0 | J28: -21.93234836
B29: ='Contratos em Aberto DI'!A27 -> F27 | C29: =VLOOKUP(MID(B29,1,1),Legendas!$B$8:$D$19,2,FALSE) -> Janeiro | D29: =WORKDAY(EOMONTH("15/"&VLOOKUP(MID(B29,1,1),Legendas!$B$8:$D$19,3,FALSE)&"/"&"20"&RIGHT(B29,2),-1),1,Feriados!$A$2:$A$937) -> 2027-01-04 | E29: 57600.88942 | F29: =NETWORKDAYS('Curva de Juros Pré'!$B$1,D29,Feriados!$A$2:$A$937)-1 -> 1118 | G29: =InterpolaPre(F29) -> 0.1324 | H29: =VLOOKUP(B29,'Contratos em Aberto DI'!$A$2:$C$40,2,FALSE) -> 944765 | I29: =VLOOKUP(B29,'Contratos em Aberto DI'!$A$2:$C$40,3,FALSE) -> 0 | J29: -22.56141578
B30: ='Contratos em Aberto DI'!A28 -> J27 | C30: =VLOOKUP(MID(B30,1,1),Legendas!$B$8:$D$19,2,FALSE) -> Abril | D30: =WORKDAY(EOMONTH("15/"&VLOOKUP(MID(B30,1,1),Legendas!$B$8:$D$19,3,FALSE)&"/"&"20"&RIGHT(B30,2),-1),1,Feriados!$A$2:$A$937) -> 2027-04-01 | E30: 55966.8249 | F30: =NETWORKDAYS('Curva de Juros Pré'!$B$1,D30,Feriados!$A$2:$A$937)-1 -> 1178 | G30: =InterpolaPre(F30) -> 0.1322 | H30: =VLOOKUP(B30,'Contratos em Aberto DI'!$A$2:$C$40,2,FALSE) -> 24243 | I30: =VLOOKUP(B30,'Contratos em Aberto DI'!$A$2:$C$40,3,FALSE) -> 0 | J30: -23.1016735
B31: ='Contratos em Aberto DI'!A29 -> N27 | C31: =VLOOKUP(MID(B31,1,1),Legendas!$B$8:$D$19,2,FALSE) -> Julho | D31: =WORKDAY(EOMONTH("15/"&VLOOKUP(MID(B31,1,1),Legendas!$B$8:$D$19,3,FALSE)&"/"&"20"&RIGHT(B31,2),-1),1,Feriados!$A$2:$A$937) -> 2027-07-01 | E31: 54161.96526 | F31: =NETWORKDAYS('Curva de Juros Pré'!$B$1,D31,Feriados!$A$2:$A$937)-1 -> 1241 | G31: =InterpolaPre(F31) -> 0.1326 | H31: =VLOOKUP(B31,'Contratos em Aberto DI'!$A$2:$C$40,2,FALSE) -> 6360 | I31: =VLOOKUP(B31,'Contratos em Aberto DI'!$A$2:$C$40,3,FALSE) -> 0 | J31: -23.54374346
B32: ='Contratos em Aberto DI'!A30 -> F28 | C32: =VLOOKUP(MID(B32,1,1),Legendas!$B$8:$D$19,2,FALSE) -> Janeiro | D32: =WORKDAY(EOMONTH("15/"&VLOOKUP(MID(B32,1,1),Legendas!$B$8:$D$19,3,FALSE)&"/"&"20"&RIGHT(B32,2),-1),1,Feriados!$A$2:$A$937) -> 2028-01-03 | E32: 50793.7612 | F32: =NETWORKDAYS('Curva de Juros Pré'!$B$1,D32,Feriados!$A$2:$A$937)-1 -> 1369 | G32: =InterpolaPre(F32) -> 0.1328 | H32: =VLOOKUP(B32,'Contratos em Aberto DI'!$A$2:$C$40,2,FALSE) -> 62075 | I32: =VLOOKUP(B32,'Contratos em Aberto DI'!$A$2:$C$40,3,FALSE) -> 0 | J32: -24.35211823
B33: ='Contratos em Aberto DI'!A31 -> F29 | C33: =VLOOKUP(MID(B33,1,1),Legendas!$B$8:$D$19,2,FALSE) -> Janeiro | D33: =WORKDAY(EOMONTH("15/"&VLOOKUP(MID(B33,1,1),Legendas!$B$8:$D$19,3,FALSE)&"/"&"20"&RIGHT(B33,2),-1),1,Feriados!$A$2:$A$937) -> 2029-01-02 | E33: 44753.32154 | F33: =NETWORKDAYS('Curva de Juros Pré'!$B$1,D33,Feriados!$A$2:$A$937)-1 -> 1618 | G33: =InterpolaPre(F33) -> 0.1334 | H33: =VLOOKUP(B33,'Contratos em Aberto DI'!$A$2:$C$40,2,FALSE) -> 475553 | I33: =VLOOKUP(B33,'Contratos em Aberto DI'!$A$2:$C$40,3,FALSE) -> 0 | J33: -25.34415888
B34: ='Contratos em Aberto DI'!A32 -> F30 | C34: =VLOOKUP(MID(B34,1,1),Legendas!$B$8:$D$19,2,FALSE) -> Janeiro | D34: =WORKDAY(EOMONTH("15/"&VLOOKUP(MID(B34,1,1),Legendas!$B$8:$D$19,3,FALSE)&"/"&"20"&RIGHT(B34,2),-1),1,Feriados!$A$2:$A$937) -> 2030-01-02 | E34: 39473.50138 | F34: =NETWORKDAYS('Curva de Juros Pré'!$B$1,D34,Feriados!$A$2:$A$937)-1 -> 1868 | G34: =InterpolaPre(F34) -> 0.1336 | H34: =VLOOKUP(B34,'Contratos em Aberto DI'!$A$2:$C$40,2,FALSE) -> 48150 | I34: =VLOOKUP(B34,'Contratos em Aberto DI'!$A$2:$C$40,3,FALSE) -> 0 | J34: -25.80245384
B35: ='Contratos em Aberto DI'!A33 -> F31 | C35: =VLOOKUP(MID(B35,1,1),Legendas!$B$8:$D$19,2,FALSE) -> Janeiro | D35: =WORKDAY(EOMONTH("15/"&VLOOKUP(MID(B35,1,1),Legendas!$B$8:$D$19,3,FALSE)&"/"&"20"&RIGHT(B35,2),-1),1,Feriados!$A$2:$A$937) -> 2031-01-02 | E35: 34700.85089 | F35: =NETWORKDAYS('Curva de Juros Pré'!$B$1,D35,Feriados!$A$2:$A$937)-1 -> 2121 | G35: =InterpolaPre(F35) -> 0.134 | H35: =VLOOKUP(B35,'Contratos em Aberto DI'!$A$2:$C$40,2,FALSE) -> 302359 | I35: =VLOOKUP(B35,'Contratos em Aberto DI'!$A$2:$C$40,3,FALSE) -> 0 | J35: -25.74464439
B36: ='Contratos em Aberto DI'!A34 -> F32 | C36: =VLOOKUP(MID(B36,1,1),Legendas!$B$8:$D$19,2,FALSE) -> Janeiro | D36: =WORKDAY(EOMONTH("15/"&VLOOKUP(MID(B36,1,1),Legendas!$B$8:$D$19,3,FALSE)&"/"&"20"&RIGHT(B36,2),-1),1,Feriados!$A$2:$A$937) -> 2032-01-02 | E36: 30559.73469 | F36: =NETWORKDAYS('Curva de Juros Pré'!$B$1,D36,Feriados!$A$2:$A$937)-1 -> 2374 | G36: =InterpolaPre(F36) -> 0.1341 | H36: =VLOOKUP(B36,'Contratos em Aberto DI'!$A$2:$C$40,2,FALSE) -> 13745 | I36: =VLOOKUP(B36,'Contratos em Aberto DI'!$A$2:$C$40,3,FALSE) -> 0 | J36: -25.37341363
B37: ='Contratos em Aberto DI'!A35 -> F33 | C37: =VLOOKUP(MID(B37,1,1),Legendas!$B$8:$D$19,2,FALSE) -> Janeiro | D37: =WORKDAY(EOMONTH("15/"&VLOOKUP(MID(B37,1,1),Legendas!$B$8:$D$19,3,FALSE)&"/"&"20"&RIGHT(B37,2),-1),1,Feriados!$A$2:$A$937) -> 2033-01-03 | E37: 26896.77437 | F37: =NETWORKDAYS('Curva de Juros Pré'!$B$1,D37,Feriados!$A$2:$A$937)-1 -> 2626 | G37: =InterpolaPre(F37) -> 0.1343 | H37: =VLOOKUP(B37,'Contratos em Aberto DI'!$A$2:$C$40,2,FALSE) -> 102147 | I37: =VLOOKUP(B37,'Contratos em Aberto DI'!$A$2:$C$40,3,FALSE) -> 0 | J37: -24.6972069
B38: ='Contratos em Aberto DI'!A36 -> F34 | C38: =VLOOKUP(MID(B38,1,1),Legendas!$B$8:$D$19,2,FALSE) -> Janeiro | D38: =WORKDAY(EOMONTH("15/"&VLOOKUP(MID(B38,1,1),Legendas!$B$8:$D$19,3,FALSE)&"/"&"20"&RIGHT(B38,2),-1),1,Feriados!$A$2:$A$937) -> 2034-01-02 | E38: 23676.37932 | F38: =NETWORKDAYS('Curva de Juros Pré'!$B$1,D38,Feriados!$A$2:$A$937)-1 -> 2877 | G38: =InterpolaPre(F38) -> 0.1345 | H38: =VLOOKUP(B38,'Contratos em Aberto DI'!$A$2:$C$40,2,FALSE) -> 1100 | I38: =VLOOKUP(B38,'Contratos em Aberto DI'!$A$2:$C$40,3,FALSE) -> 0 | J38: -23.81291048
B39: ='Contratos em Aberto DI'!A37 -> F35 | C39: =VLOOKUP(MID(B39,1,1),Legendas!$B$8:$D$19,2,FALSE) -> Janeiro | D39: =WORKDAY(EOMONTH("15/"&VLOOKUP(MID(B39,1,1),Legendas!$B$8:$D$19,3,FALSE)&"/"&"20"&RIGHT(B39,2),-1),1,Feriados!$A$2:$A$937) -> 2035-01-02 | E39: 20900.81511 | F39: =NETWORKDAYS('Curva de Juros Pré'!$B$1,D39,Feriados!$A$2:$A$937)-1 -> 3126 | G39: =InterpolaPre(F39) -> 0.1345 | H39: =VLOOKUP(B39,'Contratos em Aberto DI'!$A$2:$C$40,2,FALSE) -> 2970 | I39: =VLOOKUP(B39,'Contratos em Aberto DI'!$A$2:$C$40,3,FALSE) -> 0 | J39: -22.83971167
B40: ='Contratos em Aberto DI'!A38 -> F36 | C40: =VLOOKUP(MID(B40,1,1),Legendas!$B$8:$D$19,2,FALSE) -> Janeiro | D40: =WORKDAY(EOMONTH("15/"&VLOOKUP(MID(B40,1,1),Legendas!$B$8:$D$19,3,FALSE)&"/"&"20"&RIGHT(B40,2),-1),1,Feriados!$A$2:$A$937) -> 2036-01-02 | E40: 18397.89307 | F40: =NETWORKDAYS('Curva de Juros Pré'!$B$1,D40,Feriados!$A$2:$A$937)-1 -> 3376 | G40: =InterpolaPre(F40) -> 0.1347 | H40: =VLOOKUP(B40,'Contratos em Aberto DI'!$A$2:$C$40,2,FALSE) -> 20455 | I40: =VLOOKUP(B40,'Contratos em Aberto DI'!$A$2:$C$40,3,FALSE) -> 0 | J40: -21.70768237
B41: ='Contratos em Aberto DI'!A39 -> F37 | C41: =VLOOKUP(MID(B41,1,1),Legendas!$B$8:$D$19,2,FALSE) -> Janeiro | D41: =WORKDAY(EOMONTH("15/"&VLOOKUP(MID(B41,1,1),Legendas!$B$8:$D$19,3,FALSE)&"/"&"20"&RIGHT(B41,2),-1),1,Feriados!$A$2:$A$937) -> 2037-01-02 | E41: 16197.6299 | F41: =NETWORKDAYS('Curva de Juros Pré'!$B$1,D41,Feriados!$A$2:$A$937)-1 -> 3630 | G41: =InterpolaPre(F41) -> 0.1347 | H41: =VLOOKUP(B41,'Contratos em Aberto DI'!$A$2:$C$40,2,FALSE) -> 800 | I41: =VLOOKUP(B41,'Contratos em Aberto DI'!$A$2:$C$40,3,FALSE) -> 0 | J41: -20.54857654

Sheet Contratos em Aberto DI
A2: Q22 | B2: 742547 | C2: 0 | F2: Site: | G2: https://www.b3.com.br/pt_br/market-data-e-indices/servicos-de-dados/market-data/consultas/mercado-de-derivativos/contratos-em-aberto/vencimento-serie/contratos-em-aberto-futuro/
A3: U22 | B3: 518765 | C3: 0
A4: V22 | B4: 2231457 | C4: 0
A5: X22 | B5: 325915 | C5: 0
A6: Z22 | B6: 264213 | C6: 0
A7: F23 | B7: 5413628 | C7: 0
A8: G23 | B8: 74540 | C8: 0
A9: H23 | B9: 75897 | C9: 0
A10: J23 | B10: 630865 | C10: 0
A11: K23 | B11: 29478 | C11: 0
A12: M23 | B12: 30150 | C12: 0
A13: N23 | B13: 2172565 | C13: 0
A14: V23 | B14: 309489 | C14: 0
A15: F24 | B15: 3745488 | C15: 0
A16: J24 | B16: 809212 | C16: 0
A17: N24 | B17: 798669 | C17: 0
A18: V24 | B18: 98695 | C18: 0
A19: F25 | B19: 2743818 | C19: 0
A20: J25 | B20: 54361 | C20: 0
A21: N25 | B21: 998238 | C21: 0
A22: V25 | B22: 42558 | C22: 0
A23: F26 | B23: 527100 | C23: 0
A24: J26 | B24: 35645 | C24: 0
A25: N26 | B25: 106995 | C25: 0
A26: V26 | B26: 16438 | C26: 0
A27: F27 | B27: 944765 | C27: 0
A28: J27 | B28: 24243 | C28: 0
A29: N27 | B29: 6360 | C29: 0
A30: F28 | B30: 62075 | C30: 0
A31: F29 | B31: 475553 | C31: 0
A32: F30 | B32: 48150 | C32: 0
A33: F31 | B33: 302359 | C33: 0
A34: F32 | B34: 13745 | C34: 0
A35: F33 | B35: 102147 | C35: 0
A36: F34 | B36: 1100 | C36: 0
A37: F35 | B37: 2970 | C37: 0
A38: F36 | B38: 20455 | C38: 0
A39: F37 | B39: 800 | C39: 0

Sheet Curva de Juros Pré
A1: Data | B1: ='Anbima LTN'!K1 -> 2022-07-22 | C1: https://www.b3.com.br/pt_br/market-data-e-indices/servicos-de-dados/market-data/consultas/mercado-de-derivativos/precos-referenciais/taxas-referenciais-bm-fbovespa/
A3: DC | B3: DU | C3: ETTJ Pré
A4: 3 | B4: =NETWORKDAYS($B$1,$B$1+A4,Feriados!$A$2:$A$937)-1 -> 1 | C4: 0.1315
A5: 6 | B5: =NETWORKDAYS($B$1,$B$1+A5,Feriados!$A$2:$A$937)-1 -> 4 | C5: 0.1315
A6: 7 | B6: =NETWORKDAYS($B$1,$B$1+A6,Feriados!$A$2:$A$937)-1 -> 5 | C6: 0.1315
A7: 10 | B7: =NETWORKDAYS($B$1,$B$1+A7,Feriados!$A$2:$A$937)-1 -> 6 | C7: 0.1315
A8: 14 | B8: =NETWORKDAYS($B$1,$B$1+A8,Feriados!$A$2:$A$937)-1 -> 10 | C8: 0.1332
A9: 21 | B9: =NETWORKDAYS($B$1,$B$1+A9,Feriados!$A$2:$A$937)-1 -> 15 | C9: 0.134
A10: 24 | B10: =NETWORKDAYS($B$1,$B$1+A10,Feriados!$A$2:$A$937)-1 -> 16 | C10: 0.1341
A11: 26 | B11: =NETWORKDAYS($B$1,$B$1+A11,Feriados!$A$2:$A$937)-1 -> 18 | C11: 0.1343
A12: 28 | B12: =NETWORKDAYS($B$1,$B$1+A12,Feriados!$A$2:$A$937)-1 -> 20 | C12: 0.1344
A13: 31 | B13: =NETWORKDAYS($B$1,$B$1+A13,Feriados!$A$2:$A$937)-1 -> 21 | C13: 0.1345
A14: 33 | B14: =NETWORKDAYS($B$1,$B$1+A14,Feriados!$A$2:$A$937)-1 -> 23 | C14: 0.1346
A15: 39 | B15: =NETWORKDAYS($B$1,$B$1+A15,Feriados!$A$2:$A$937)-1 -> 27 | C15: 0.1347
A16: 40 | B16: =NETWORKDAYS($B$1,$B$1+A16,Feriados!$A$2:$A$937)-1 -> 28 | C16: 0.1348
A17: 41 | B17: =NETWORKDAYS($B$1,$B$1+A17,Feriados!$A$2:$A$937)-1 -> 29 | C17: 0.1348
A18: 49 | B18: =NETWORKDAYS($B$1,$B$1+A18,Feriados!$A$2:$A$937)-1 -> 34 | C18: 0.1352
A19: 54 | B19: =NETWORKDAYS($B$1,$B$1+A19,Feriados!$A$2:$A$937)-1 -> 37 | C19: 0.1354
A20: 55 | B20: =NETWORKDAYS($B$1,$B$1+A20,Feriados!$A$2:$A$937)-1 -> 38 | C20: 0.1354
A21: 56 | B21: =NETWORKDAYS($B$1,$B$1+A21,Feriados!$A$2:$A$937)-1 -> 39 | C21: 0.1355
A22: 60 | B22: =NETWORKDAYS($B$1,$B$1+A22,Feriados!$A$2:$A$937)-1 -> 41 | C22: 0.1356
A23: 62 | B23: =NETWORKDAYS($B$1,$B$1+A23,Feriados!$A$2:$A$937)-1 -> 43 | C23: 0.1357
A24: 70 | B24: =NETWORKDAYS($B$1,$B$1+A24,Feriados!$A$2:$A$937)-1 -> 49 | C24: 0.1359
A25: 73 | B25: =NETWORKDAYS($B$1,$B$1+A25,Feriados!$A$2:$A$937)-1 -> 50 | C25: 0.1359
A26: 83 | B26: =NETWORKDAYS($B$1,$B$1+A26,Feriados!$A$2:$A$937)-1 -> 57 | C26: 0.1364
A27: 87 | B27: =NETWORKDAYS($B$1,$B$1+A27,Feriados!$A$2:$A$937)-1 -> 59 | C27: 0.1366
A28: 90 | B28: =NETWORKDAYS($B$1,$B$1+A28,Feriados!$A$2:$A$937)-1 -> 62 | C28: 0.1367
A29: 98 | B29: =NETWORKDAYS($B$1,$B$1+A29,Feriados!$A$2:$A$937)-1 -> 68 | C29: 0.137
A30: 101 | B30: =NETWORKDAYS($B$1,$B$1+A30,Feriados!$A$2:$A$937)-1 -> 69 | C30: 0.1371
A31: 102 | B31: =NETWORKDAYS($B$1,$B$1+A31,Feriados!$A$2:$A$937)-1 -> 70 | C31: 0.1371
A32: 117 | B32: =NETWORKDAYS($B$1,$B$1+A32,Feriados!$A$2:$A$937)-1 -> 79 | C32: 0.1376
A33: 122 | B33: =NETWORKDAYS($B$1,$B$1+A33,Feriados!$A$2:$A$937)-1 -> 82 | C33: 0.1377
A34: 131 | B34: =NETWORKDAYS($B$1,$B$1+A34,Feriados!$A$2:$A$937)-1 -> 89 | C34: 0.138
A35: 132 | B35: =NETWORKDAYS($B$1,$B$1+A35,Feriados!$A$2:$A$937)-1 -> 90 | C35: 0.138
A36: 140 | B36: =NETWORKDAYS($B$1,$B$1+A36,Feriados!$A$2:$A$937)-1 -> 96 | C36: 0.1382
A37: 145 | B37: =NETWORKDAYS($B$1,$B$1+A37,Feriados!$A$2:$A$937)-1 -> 99 | C37: 0.1383
A38: 146 | B38: =NETWORKDAYS($B$1,$B$1+A38,Feriados!$A$2:$A$937)-1 -> 100 | C38: 0.1383
A39: 147 | B39: =NETWORKDAYS($B$1,$B$1+A39,Feriados!$A$2:$A$937)-1 -> 101 | C39: 0.1383
A40: 150 | B40: =NETWORKDAYS($B$1,$B$1+A40,Feriados!$A$2:$A$937)-1 -> 102 | C40: 0.1384
A41: 152 | B41: =NETWORKDAYS($B$1,$B$1+A41,Feriados!$A$2:$A$937)-1 -> 104 | C41: 0.1384
A42: 159 | B42: =NETWORKDAYS($B$1,$B$1+A42,Feriados!$A$2:$A$937)-1 -> 109 | C42: 0.1385
A43: 160 | B43: =NETWORKDAYS($B$1,$B$1+A43,Feriados!$A$2:$A$937)-1 -> 110 | C43: 0.1386
A44: 164 | B44: =NETWORKDAYS($B$1,$B$1+A44,Feriados!$A$2:$A$937)-1 -> 112 | C44: 0.1386
A45: 178 | B45: =NETWORKDAYS($B$1,$B$1+A45,Feriados!$A$2:$A$937)-1 -> 122 | C45: 0.1388
A46: 180 | B46: =NETWORKDAYS($B$1,$B$1+A46,Feriados!$A$2:$A$937)-1 -> 124 | C46: 0.1389
A47: 194 | B47: =NETWORKDAYS($B$1,$B$1+A47,Feriados!$A$2:$A$937)-1 -> 134 | C47: 0.139
A48: 208 | B48: =NETWORKDAYS($B$1,$B$1+A48,Feriados!$A$2:$A$937)-1 -> 144 | C48: 0.1391
A49: 209 | B49: =NETWORKDAYS($B$1,$B$1+A49,Feriados!$A$2:$A$937)-1 -> 145 | C49: 0.1391
A50: 210 | B50: =NETWORKDAYS($B$1,$B$1+A50,Feriados!$A$2:$A$937)-1 -> 146 | C50: 0.1391
A51: 220 | B51: =NETWORKDAYS($B$1,$B$1+A51,Feriados!$A$2:$A$937)-1 -> 150 | C51: 0.1391
A52: 221 | B52: =NETWORKDAYS($B$1,$B$1+A52,Feriados!$A$2:$A$937)-1 -> 151 | C52: 0.1391
A53: 222 | B53: =NETWORKDAYS($B$1,$B$1+A53,Feriados!$A$2:$A$937)-1 -> 152 | C53: 0.1391
A54: 236 | B54: =NETWORKDAYS($B$1,$B$1+A54,Feriados!$A$2:$A$937)-1 -> 162 | C54: 0.1394
A55: 238 | B55: =NETWORKDAYS($B$1,$B$1+A55,Feriados!$A$2:$A$937)-1 -> 164 | C55: 0.1395
A56: 241 | B56: =NETWORKDAYS($B$1,$B$1+A56,Feriados!$A$2:$A$937)-1 -> 165 | C56: 0.1395
A57: 244 | B57: =NETWORKDAYS($B$1,$B$1+A57,Feriados!$A$2:$A$937)-1 -> 168 | C57: 0.1396
A58: 252 | B58: =NETWORKDAYS($B$1,$B$1+A58,Feriados!$A$2:$A$937)-1 -> 174 | C58: 0.1398
A59: 255 | B59: =NETWORKDAYS($B$1,$B$1+A59,Feriados!$A$2:$A$937)-1 -> 175 | C59: 0.1398
A60: 264 | B60: =NETWORKDAYS($B$1,$B$1+A60,Feriados!$A$2:$A$937)-1 -> 181 | C60: 0.1398
A61: 269 | B61: =NETWORKDAYS($B$1,$B$1+A61,Feriados!$A$2:$A$937)-1 -> 184 | C61: 0.1399
A62: 270 | B62: =NETWORKDAYS($B$1,$B$1+A62,Feriados!$A$2:$A$937)-1 -> 185 | C62: 0.1399
A63: 279 | B63: =NETWORKDAYS($B$1,$B$1+A63,Feriados!$A$2:$A$937)-1 -> 191 | C63: 0.1399
A64: 280 | B64: =NETWORKDAYS($B$1,$B$1+A64,Feriados!$A$2:$A$937)-1 -> 192 | C64: 0.1399
A65: 284 | B65: =NETWORKDAYS($B$1,$B$1+A65,Feriados!$A$2:$A$937)-1 -> 193 | C65: 0.1399
A66: 297 | B66: =NETWORKDAYS($B$1,$B$1+A66,Feriados!$A$2:$A$937)-1 -> 202 | C66: 0.14
A67: 300 | B67: =NETWORKDAYS($B$1,$B$1+A67,Feriados!$A$2:$A$937)-1 -> 205 | C67: 0.14
A68: 313 | B68: =NETWORKDAYS($B$1,$B$1+A68,Feriados!$A$2:$A$937)-1 -> 214 | C68: 0.14
A69: 314 | B69: =NETWORKDAYS($B$1,$B$1+A69,Feriados!$A$2:$A$937)-1 -> 215 | C69: 0.14
A70: 327 | B70: =NETWORKDAYS($B$1,$B$1+A70,Feriados!$A$2:$A$937)-1 -> 223 | C70: 0.1401
A71: 328 | B71: =NETWORKDAYS($B$1,$B$1+A71,Feriados!$A$2:$A$937)-1 -> 224 | C71: 0.1401
A72: 329 | B72: =NETWORKDAYS($B$1,$B$1+A72,Feriados!$A$2:$A$937)-1 -> 225 | C72: 0.1401
A73: 332 | B73: =NETWORKDAYS($B$1,$B$1+A73,Feriados!$A$2:$A$937)-1 -> 226 | C73: 0.1401
A74: 335 | B74: =NETWORKDAYS($B$1,$B$1+A74,Feriados!$A$2:$A$937)-1 -> 229 | C74: 0.1401
A75: 342 | B75: =NETWORKDAYS($B$1,$B$1+A75,Feriados!$A$2:$A$937)-1 -> 234 | C75: 0.1402
A76: 343 | B76: =NETWORKDAYS($B$1,$B$1+A76,Feriados!$A$2:$A$937)-1 -> 235 | C76: 0.1402
A77: 346 | B77: =NETWORKDAYS($B$1,$B$1+A77,Feriados!$A$2:$A$937)-1 -> 236 | C77: 0.1402
A78: 355 | B78: =NETWORKDAYS($B$1,$B$1+A78,Feriados!$A$2:$A$937)-1 -> 243 | C78: 0.1401
A79: 360 | B79: =NETWORKDAYS($B$1,$B$1+A79,Feriados!$A$2:$A$937)-1 -> 246 | C79: 0.14
A80: 371 | B80: =NETWORKDAYS($B$1,$B$1+A80,Feriados!$A$2:$A$937)-1 -> 255 | C80: 0.1399
A81: 374 | B81: =NETWORKDAYS($B$1,$B$1+A81,Feriados!$A$2:$A$937)-1 -> 256 | C81: 0.1399
A82: 389 | B82: =NETWORKDAYS($B$1,$B$1+A82,Feriados!$A$2:$A$937)-1 -> 267 | C82: 0.1397
A83: 390 | B83: =NETWORKDAYS($B$1,$B$1+A83,Feriados!$A$2:$A$937)-1 -> 268 | C83: 0.1397
A84: 406 | B84: =NETWORKDAYS($B$1,$B$1+A84,Feriados!$A$2:$A$937)-1 -> 280 | C84: 0.1396
A85: 420 | B85: =NETWORKDAYS($B$1,$B$1+A85,Feriados!$A$2:$A$937)-1 -> 289 | C85: 0.1395
A86: 426 | B86: =NETWORKDAYS($B$1,$B$1+A86,Feriados!$A$2:$A$937)-1 -> 293 | C86: 0.1394
A87: 437 | B87: =NETWORKDAYS($B$1,$B$1+A87,Feriados!$A$2:$A$937)-1 -> 300 | C87: 0.1394
A88: 451 | B88: =NETWORKDAYS($B$1,$B$1+A88,Feriados!$A$2:$A$937)-1 -> 309 | C88: 0.1391
A89: 453 | B89: =NETWORKDAYS($B$1,$B$1+A89,Feriados!$A$2:$A$937)-1 -> 311 | C89: 0.1391
A90: 466 | B90: =NETWORKDAYS($B$1,$B$1+A90,Feriados!$A$2:$A$937)-1 -> 320 | C90: 0.1389
A91: 480 | B91: =NETWORKDAYS($B$1,$B$1+A91,Feriados!$A$2:$A$937)-1 -> 329 | C91: 0.1387
A92: 482 | B92: =NETWORKDAYS($B$1,$B$1+A92,Feriados!$A$2:$A$937)-1 -> 330 | C92: 0.1387
A93: 509 | B93: =NETWORKDAYS($B$1,$B$1+A93,Feriados!$A$2:$A$937)-1 -> 349 | C93: 0.1383
A94: 510 | B94: =NETWORKDAYS($B$1,$B$1+A94,Feriados!$A$2:$A$937)-1 -> 350 | C94: 0.1383
A95: 515 | B95: =NETWORKDAYS($B$1,$B$1+A95,Feriados!$A$2:$A$937)-1 -> 353 | C95: 0.1382
A96: 529 | B96: =NETWORKDAYS($B$1,$B$1+A96,Feriados!$A$2:$A$937)-1 -> 361 | C96: 0.1381
A97: 542 | B97: =NETWORKDAYS($B$1,$B$1+A97,Feriados!$A$2:$A$937)-1 -> 370 | C97: 0.1379
A98: 572 | B98: =NETWORKDAYS($B$1,$B$1+A98,Feriados!$A$2:$A$937)-1 -> 390 | C98: 0.1375
A99: 573 | B99: =NETWORKDAYS($B$1,$B$1+A99,Feriados!$A$2:$A$937)-1 -> 391 | C99: 0.1375
A100: 600 | B100: =NETWORKDAYS($B$1,$B$1+A100,Feriados!$A$2:$A$937)-1 -> 410 | C100: 0.1372
A101: 619 | B101: =NETWORKDAYS($B$1,$B$1+A101,Feriados!$A$2:$A$937)-1 -> 422 | C101: 0.137
A102: 630 | B102: =NETWORKDAYS($B$1,$B$1+A102,Feriados!$A$2:$A$937)-1 -> 431 | C102: 0.1367
A103: 633 | B103: =NETWORKDAYS($B$1,$B$1+A103,Feriados!$A$2:$A$937)-1 -> 432 | C103: 0.1367
A104: 635 | B104: =NETWORKDAYS($B$1,$B$1+A104,Feriados!$A$2:$A$937)-1 -> 434 | C104: 0.1366
A105: 647 | B105: =NETWORKDAYS($B$1,$B$1+A105,Feriados!$A$2:$A$937)-1 -> 442 | C105: 0.1364
A106: 661 | B106: =NETWORKDAYS($B$1,$B$1+A106,Feriados!$A$2:$A$937)-1 -> 451 | C106: 0.1362
A107: 663 | B107: =NETWORKDAYS($B$1,$B$1+A107,Feriados!$A$2:$A$937)-1 -> 453 | C107: 0.1361
A108: 690 | B108: =NETWORKDAYS($B$1,$B$1+A108,Feriados!$A$2:$A$937)-1 -> 471 | C108: 0.1357
A109: 691 | B109: =NETWORKDAYS($B$1,$B$1+A109,Feriados!$A$2:$A$937)-1 -> 472 | C109: 0.1357
A110: 710 | B110: =NETWORKDAYS($B$1,$B$1+A110,Feriados!$A$2:$A$937)-1 -> 485 | C110: 0.1354
A111: 720 | B111: =NETWORKDAYS($B$1,$B$1+A111,Feriados!$A$2:$A$937)-1 -> 493 | C111: 0.1353
A112: 752 | B112: =NETWORKDAYS($B$1,$B$1+A112,Feriados!$A$2:$A$937)-1 -> 515 | C112: 0.1349
A113: 754 | B113: =NETWORKDAYS($B$1,$B$1+A113,Feriados!$A$2:$A$937)-1 -> 517 | C113: 0.1348
A114: 755 | B114: =NETWORKDAYS($B$1,$B$1+A114,Feriados!$A$2:$A$937)-1 -> 518 | C114: 0.1348
A115: 780 | B115: =NETWORKDAYS($B$1,$B$1+A115,Feriados!$A$2:$A$937)-1 -> 535 | C115: 0.1345
A116: 802 | B116: =NETWORKDAYS($B$1,$B$1+A116,Feriados!$A$2:$A$937)-1 -> 551 | C116: 0.1343
A117: 810 | B117: =NETWORKDAYS($B$1,$B$1+A117,Feriados!$A$2:$A$937)-1 -> 557 | C117: 0.1341
A118: 811 | B118: =NETWORKDAYS($B$1,$B$1+A118,Feriados!$A$2:$A$937)-1 -> 558 | C118: 0.1341
A119: 840 | B119: =NETWORKDAYS($B$1,$B$1+A119,Feriados!$A$2:$A$937)-1 -> 579 | C119: 0.1335
A120: 850 | B120: =NETWORKDAYS($B$1,$B$1+A120,Feriados!$A$2:$A$937)-1 -> 584 | C120: 0.1334
A121: 871 | B121: =NETWORKDAYS($B$1,$B$1+A121,Feriados!$A$2:$A$937)-1 -> 599 | C121: 0.133
A122: 895 | B122: =NETWORKDAYS($B$1,$B$1+A122,Feriados!$A$2:$A$937)-1 -> 615 | C122: 0.1327
A123: 900 | B123: =NETWORKDAYS($B$1,$B$1+A123,Feriados!$A$2:$A$937)-1 -> 618 | C123: 0.1326
A124: 930 | B124: =NETWORKDAYS($B$1,$B$1+A124,Feriados!$A$2:$A$937)-1 -> 640 | C124: 0.1325
A125: 941 | B125: =NETWORKDAYS($B$1,$B$1+A125,Feriados!$A$2:$A$937)-1 -> 647 | C125: 0.1325
A126: 962 | B126: =NETWORKDAYS($B$1,$B$1+A126,Feriados!$A$2:$A$937)-1 -> 660 | C126: 0.1325
A127: 984 | B127: =NETWORKDAYS($B$1,$B$1+A127,Feriados!$A$2:$A$937)-1 -> 676 | C127: 0.1324
A128: 990 | B128: =NETWORKDAYS($B$1,$B$1+A128,Feriados!$A$2:$A$937)-1 -> 680 | C128: 0.1324
A129: 1015 | B129: =NETWORKDAYS($B$1,$B$1+A129,Feriados!$A$2:$A$937)-1 -> 696 | C129: 0.1322
A130: 1020 | B130: =NETWORKDAYS($B$1,$B$1+A130,Feriados!$A$2:$A$937)-1 -> 699 | C130: 0.1322
A131: 1028 | B131: =NETWORKDAYS($B$1,$B$1+A131,Feriados!$A$2:$A$937)-1 -> 705 | C131: 0.1322
A132: 1050 | B132: =NETWORKDAYS($B$1,$B$1+A132,Feriados!$A$2:$A$937)-1 -> 721 | C132: 0.132
A133: 1075 | B133: =NETWORKDAYS($B$1,$B$1+A133,Feriados!$A$2:$A$937)-1 -> 737 | C133: 0.1319
A134: 1081 | B134: =NETWORKDAYS($B$1,$B$1+A134,Feriados!$A$2:$A$937)-1 -> 741 | C134: 0.1319
A135: 1110 | B135: =NETWORKDAYS($B$1,$B$1+A135,Feriados!$A$2:$A$937)-1 -> 762 | C135: 0.132
A136: 1120 | B136: =NETWORKDAYS($B$1,$B$1+A136,Feriados!$A$2:$A$937)-1 -> 770 | C136: 0.1321
A137: 1140 | B137: =NETWORKDAYS($B$1,$B$1+A137,Feriados!$A$2:$A$937)-1 -> 784 | C137: 0.1321
A138: 1167 | B138: =NETWORKDAYS($B$1,$B$1+A138,Feriados!$A$2:$A$937)-1 -> 803 | C138: 0.1322
A139: 1172 | B139: =NETWORKDAYS($B$1,$B$1+A139,Feriados!$A$2:$A$937)-1 -> 806 | C139: 0.1322
A140: 1200 | B140: =NETWORKDAYS($B$1,$B$1+A140,Feriados!$A$2:$A$937)-1 -> 826 | C140: 0.132
A141: 1214 | B141: =NETWORKDAYS($B$1,$B$1+A141,Feriados!$A$2:$A$937)-1 -> 836 | C141: 0.132
A142: 1260 | B142: =NETWORKDAYS($B$1,$B$1+A142,Feriados!$A$2:$A$937)-1 -> 868 | C142: 0.1318
A143: 1307 | B143: =NETWORKDAYS($B$1,$B$1+A143,Feriados!$A$2:$A$937)-1 -> 899 | C143: 0.1318
A144: 1349 | B144: =NETWORKDAYS($B$1,$B$1+A144,Feriados!$A$2:$A$937)-1 -> 929 | C144: 0.1319
A145: 1393 | B145: =NETWORKDAYS($B$1,$B$1+A145,Feriados!$A$2:$A$937)-1 -> 958 | C145: 0.1318
A146: 1440 | B146: =NETWORKDAYS($B$1,$B$1+A146,Feriados!$A$2:$A$937)-1 -> 990 | C146: 0.1318
A147: 1487 | B147: =NETWORKDAYS($B$1,$B$1+A147,Feriados!$A$2:$A$937)-1 -> 1023 | C147: 0.1323
A148: 1532 | B148: =NETWORKDAYS($B$1,$B$1+A148,Feriados!$A$2:$A$937)-1 -> 1055 | C148: 0.1327
A149: 1578 | B149: =NETWORKDAYS($B$1,$B$1+A149,Feriados!$A$2:$A$937)-1 -> 1085 | C149: 0.1326
A150: 1627 | B150: =NETWORKDAYS($B$1,$B$1+A150,Feriados!$A$2:$A$937)-1 -> 1118 | C150: 0.1324
A151: 1669 | B151: =NETWORKDAYS($B$1,$B$1+A151,Feriados!$A$2:$A$937)-1 -> 1146 | C151: 0.1323
A152: 1714 | B152: =NETWORKDAYS($B$1,$B$1+A152,Feriados!$A$2:$A$937)-1 -> 1178 | C152: 0.1322
A153: 1760 | B153: =NETWORKDAYS($B$1,$B$1+A153,Feriados!$A$2:$A$937)-1 -> 1209 | C153: 0.1324
A154: 1802 | B154: =NETWORKDAYS($B$1,$B$1+A154,Feriados!$A$2:$A$937)-1 -> 1238 | C154: 0.1326
A155: 1805 | B155: =NETWORKDAYS($B$1,$B$1+A155,Feriados!$A$2:$A$937)-1 -> 1241 | C155: 0.1326
A156: 1851 | B156: =NETWORKDAYS($B$1,$B$1+A156,Feriados!$A$2:$A$937)-1 -> 1273 | C156: 0.1327
A157: 1943 | B157: =NETWORKDAYS($B$1,$B$1+A157,Feriados!$A$2:$A$937)-1 -> 1335 | C157: 0.1328
A158: 1991 | B158: =NETWORKDAYS($B$1,$B$1+A158,Feriados!$A$2:$A$937)-1 -> 1369 | C158: 0.1328
A159: 2034 | B159: =NETWORKDAYS($B$1,$B$1+A159,Feriados!$A$2:$A$937)-1 -> 1400 | C159: 0.1329
A160: 2124 | B160: =NETWORKDAYS($B$1,$B$1+A160,Feriados!$A$2:$A$937)-1 -> 1459 | C160: 0.1331
A161: 2160 | B161: =NETWORKDAYS($B$1,$B$1+A161,Feriados!$A$2:$A$937)-1 -> 1484 | C161: 0.1331
A162: 2173 | B162: =NETWORKDAYS($B$1,$B$1+A162,Feriados!$A$2:$A$937)-1 -> 1493 | C162: 0.1331
A163: 2216 | B163: =NETWORKDAYS($B$1,$B$1+A163,Feriados!$A$2:$A$937)-1 -> 1524 | C163: 0.1332
A164: 2309 | B164: =NETWORKDAYS($B$1,$B$1+A164,Feriados!$A$2:$A$937)-1 -> 1587 | C164: 0.1333
A165: 2356 | B165: =NETWORKDAYS($B$1,$B$1+A165,Feriados!$A$2:$A$937)-1 -> 1618 | C165: 0.1334
A166: 2400 | B166: =NETWORKDAYS($B$1,$B$1+A166,Feriados!$A$2:$A$937)-1 -> 1648 | C166: 0.1334
A167: 2489 | B167: =NETWORKDAYS($B$1,$B$1+A167,Feriados!$A$2:$A$937)-1 -> 1709 | C167: 0.1335
A168: 2520 | B168: =NETWORKDAYS($B$1,$B$1+A168,Feriados!$A$2:$A$937)-1 -> 1731 | C168: 0.1335
A169: 2537 | B169: =NETWORKDAYS($B$1,$B$1+A169,Feriados!$A$2:$A$937)-1 -> 1742 | C169: 0.1335
A170: 2567 | B170: =NETWORKDAYS($B$1,$B$1+A170,Feriados!$A$2:$A$937)-1 -> 1764 | C170: 0.1335
A171: 2581 | B171: =NETWORKDAYS($B$1,$B$1+A171,Feriados!$A$2:$A$937)-1 -> 1774 | C171: 0.1335
A172: 2674 | B172: =NETWORKDAYS($B$1,$B$1+A172,Feriados!$A$2:$A$937)-1 -> 1837 | C172: 0.1335
A173: 2721 | B173: =NETWORKDAYS($B$1,$B$1+A173,Feriados!$A$2:$A$937)-1 -> 1868 | C173: 0.1336
A174: 2765 | B174: =NETWORKDAYS($B$1,$B$1+A174,Feriados!$A$2:$A$937)-1 -> 1900 | C174: 0.1336
A175: 2810 | B175: =NETWORKDAYS($B$1,$B$1+A175,Feriados!$A$2:$A$937)-1 -> 1929 | C175: 0.1337
A176: 2854 | B176: =NETWORKDAYS($B$1,$B$1+A176,Feriados!$A$2:$A$937)-1 -> 1959 | C176: 0.1337
A177: 2880 | B177: =NETWORKDAYS($B$1,$B$1+A177,Feriados!$A$2:$A$937)-1 -> 1977 | C177: 0.1338
A178: 2901 | B178: =NETWORKDAYS($B$1,$B$1+A178,Feriados!$A$2:$A$937)-1 -> 1991 | C178: 0.1338
A179: 2946 | B179: =NETWORKDAYS($B$1,$B$1+A179,Feriados!$A$2:$A$937)-1 -> 2024 | C179: 0.1338
A180: 3041 | B180: =NETWORKDAYS($B$1,$B$1+A180,Feriados!$A$2:$A$937)-1 -> 2090 | C180: 0.134
A181: 3086 | B181: =NETWORKDAYS($B$1,$B$1+A181,Feriados!$A$2:$A$937)-1 -> 2121 | C181: 0.134
A182: 3132 | B182: =NETWORKDAYS($B$1,$B$1+A182,Feriados!$A$2:$A$937)-1 -> 2153 | C182: 0.134
A183: 3219 | B183: =NETWORKDAYS($B$1,$B$1+A183,Feriados!$A$2:$A$937)-1 -> 2211 | C183: 0.134
A184: 3240 | B184: =NETWORKDAYS($B$1,$B$1+A184,Feriados!$A$2:$A$937)-1 -> 2226 | C184: 0.134
A185: 3311 | B185: =NETWORKDAYS($B$1,$B$1+A185,Feriados!$A$2:$A$937)-1 -> 2276 | C185: 0.1341
A186: 3405 | B186: =NETWORKDAYS($B$1,$B$1+A186,Feriados!$A$2:$A$937)-1 -> 2342 | C186: 0.1341
A187: 3451 | B187: =NETWORKDAYS($B$1,$B$1+A187,Feriados!$A$2:$A$937)-1 -> 2374 | C187: 0.1341
A188: 3496 | B188: =NETWORKDAYS($B$1,$B$1+A188,Feriados!$A$2:$A$937)-1 -> 2403 | C188: 0.1341
A189: 3587 | B189: =NETWORKDAYS($B$1,$B$1+A189,Feriados!$A$2:$A$937)-1 -> 2466 | C189: 0.1342
A190: 3601 | B190: =NETWORKDAYS($B$1,$B$1+A190,Feriados!$A$2:$A$937)-1 -> 2475 | C190: 0.1342
A191: 3678 | B191: =NETWORKDAYS($B$1,$B$1+A191,Feriados!$A$2:$A$937)-1 -> 2530 | C191: 0.1342
A192: 3770 | B192: =NETWORKDAYS($B$1,$B$1+A192,Feriados!$A$2:$A$937)-1 -> 2592 | C192: 0.1343
A193: 3818 | B193: =NETWORKDAYS($B$1,$B$1+A193,Feriados!$A$2:$A$937)-1 -> 2626 | C193: 0.1343
A194: 3861 | B194: =NETWORKDAYS($B$1,$B$1+A194,Feriados!$A$2:$A$937)-1 -> 2657 | C194: 0.1343
A195: 3951 | B195: =NETWORKDAYS($B$1,$B$1+A195,Feriados!$A$2:$A$937)-1 -> 2717 | C195: 0.1344
A196: 3960 | B196: =NETWORKDAYS($B$1,$B$1+A196,Feriados!$A$2:$A$937)-1 -> 2724 | C196: 0.1344
A197: 4042 | B197: =NETWORKDAYS($B$1,$B$1+A197,Feriados!$A$2:$A$937)-1 -> 2781 | C197: 0.1345
A198: 4135 | B198: =NETWORKDAYS($B$1,$B$1+A198,Feriados!$A$2:$A$937)-1 -> 2844 | C198: 0.1345
A199: 4182 | B199: =NETWORKDAYS($B$1,$B$1+A199,Feriados!$A$2:$A$937)-1 -> 2877 | C199: 0.1345
A200: 4226 | B200: =NETWORKDAYS($B$1,$B$1+A200,Feriados!$A$2:$A$937)-1 -> 2909 | C200: 0.1345
A201: 4315 | B201: =NETWORKDAYS($B$1,$B$1+A201,Feriados!$A$2:$A$937)-1 -> 2967 | C201: 0.1345
... 67 more rows

Sheet ETTJ x Contratos em Aberto
L2: Min. Liquidez Desejada | N2: 1500000 | Q2: Vencimento | R2: Série | S2: Taxa | T2: Contratos | U2: DV01 | W2: 0
Q3: =Resumo!D4 -> 2022-08-01 | R3: =Resumo!B4 -> Q22 | S3: =Resumo!G4 -> 0.1315 | T3: =IF(Resumo!H4>'ETTJ x Contratos em Aberto'!$N$2,Resumo!H4,NA()) ->  | U3: =IF(Resumo!H4>'ETTJ x Contratos em Aberto'!$N$2,Resumo!J4,NA()) ->  | W3: 500000
Q4: =Resumo!D5 -> 2022-09-01 | R4: =Resumo!B5 -> U22 | S4: =Resumo!G5 -> 0.1348 | T4: =IF(Resumo!H5>'ETTJ x Contratos em Aberto'!$N$2,Resumo!H5,NA()) ->  | U4: =IF(Resumo!H5>'ETTJ x Contratos em Aberto'!$N$2,Resumo!J5,NA()) ->  | W4: 1000000
Q5: =Resumo!D6 -> 2022-10-03 | R5: =Resumo!B6 -> V22 | S5: =Resumo!G6 -> 0.1359 | T5: =IF(Resumo!H6>'ETTJ x Contratos em Aberto'!$N$2,Resumo!H6,NA()) -> 2231457 | U5: =IF(Resumo!H6>'ETTJ x Contratos em Aberto'!$N$2,Resumo!J6,NA()) -> -1.7030456 | W5: 1500000
Q6: =Resumo!D7 -> 2022-11-01 | R6: =Resumo!B7 -> X22 | S6: =Resumo!G7 -> 0.1371 | T6: =IF(Resumo!H7>'ETTJ x Contratos em Aberto'!$N$2,Resumo!H7,NA()) ->  | U6: =IF(Resumo!H7>'ETTJ x Contratos em Aberto'!$N$2,Resumo!J7,NA()) ->  | W6: 2000000
Q7: =Resumo!D8 -> 2022-12-01 | R7: =Resumo!B8 -> Z22 | S7: =Resumo!G8 -> 0.138 | T7: =IF(Resumo!H8>'ETTJ x Contratos em Aberto'!$N$2,Resumo!H8,NA()) ->  | U7: =IF(Resumo!H8>'ETTJ x Contratos em Aberto'!$N$2,Resumo!J8,NA()) ->  | W7: 3000000
Q8: =Resumo!D9 -> 2023-01-02 | R8: =Resumo!B9 -> F23 | S8: =Resumo!G9 -> 0.1386 | T8: =IF(Resumo!H9>'ETTJ x Contratos em Aberto'!$N$2,Resumo!H9,NA()) -> 5413628 | U8: =IF(Resumo!H9>'ETTJ x Contratos em Aberto'!$N$2,Resumo!J9,NA()) -> -3.684384091
Q9: =Resumo!D10 -> 2023-02-01 | R9: =Resumo!B10 -> G23 | S9: =Resumo!G10 -> 0.139 | T9: =IF(Resumo!H10>'ETTJ x Contratos em Aberto'!$N$2,Resumo!H10,NA()) ->  | U9: =IF(Resumo!H10>'ETTJ x Contratos em Aberto'!$N$2,Resumo!J10,NA()) -> 
Q10: =Resumo!D11 -> 2023-03-01 | R10: =Resumo!B11 -> H23 | S10: =Resumo!G11 -> 0.1391 | T10: =IF(Resumo!H11>'ETTJ x Contratos em Aberto'!$N$2,Resumo!H11,NA()) ->  | U10: =IF(Resumo!H11>'ETTJ x Contratos em Aberto'!$N$2,Resumo!J11,NA()) -> 
Q11: =Resumo!D12 -> 2023-04-03 | R11: =Resumo!B12 -> J23 | S11: =Resumo!G12 -> 0.1398 | T11: =IF(Resumo!H12>'ETTJ x Contratos em Aberto'!$N$2,Resumo!H12,NA()) ->  | U11: =IF(Resumo!H12>'ETTJ x Contratos em Aberto'!$N$2,Resumo!J12,NA()) -> 
Q12: =Resumo!D13 -> 2023-05-02 | R12: =Resumo!B13 -> K23 | S12: =Resumo!G13 -> 0.1399 | T12: =IF(Resumo!H13>'ETTJ x Contratos em Aberto'!$N$2,Resumo!H13,NA()) ->  | U12: =IF(Resumo!H13>'ETTJ x Contratos em Aberto'!$N$2,Resumo!J13,NA()) -> 
Q13: =Resumo!D14 -> 2023-06-01 | R13: =Resumo!B14 -> M23 | S13: =Resumo!G14 -> 0.14 | T13: =IF(Resumo!H14>'ETTJ x Contratos em Aberto'!$N$2,Resumo!H14,NA()) ->  | U13: =IF(Resumo!H14>'ETTJ x Contratos em Aberto'!$N$2,Resumo!J14,NA()) -> 
Q14: =Resumo!D15 -> 2023-07-03 | R14: =Resumo!B15 -> N23 | S14: =Resumo!G15 -> 0.1402 | T14: =IF(Resumo!H15>'ETTJ x Contratos em Aberto'!$N$2,Resumo!H15,NA()) -> 2172565 | U14: =IF(Resumo!H15>'ETTJ x Contratos em Aberto'!$N$2,Resumo!J15,NA()) -> -7.263239316
Q15: =Resumo!D16 -> 2023-10-02 | R15: =Resumo!B16 -> V23 | S15: =Resumo!G16 -> 0.1394 | T15: =IF(Resumo!H16>'ETTJ x Contratos em Aberto'!$N$2,Resumo!H16,NA()) ->  | U15: =IF(Resumo!H16>'ETTJ x Contratos em Aberto'!$N$2,Resumo!J16,NA()) -> 
Q16: =Resumo!D17 -> 2024-01-02 | R16: =Resumo!B17 -> F24 | S16: =Resumo!G17 -> 0.1381 | T16: =IF(Resumo!H17>'ETTJ x Contratos em Aberto'!$N$2,Resumo!H17,NA()) -> 3745488 | U16: =IF(Resumo!H17>'ETTJ x Contratos em Aberto'!$N$2,Resumo!J17,NA()) -> -10.45680819
Q17: =Resumo!D18 -> 2024-04-01 | R17: =Resumo!B18 -> J24 | S17: =Resumo!G18 -> 0.137 | T17: =IF(Resumo!H18>'ETTJ x Contratos em Aberto'!$N$2,Resumo!H18,NA()) ->  | U17: =IF(Resumo!H18>'ETTJ x Contratos em Aberto'!$N$2,Resumo!J18,NA()) -> 
Q18: =Resumo!D19 -> 2024-07-01 | R18: =Resumo!B19 -> N24 | S18: =Resumo!G19 -> 0.1354 | T18: =IF(Resumo!H19>'ETTJ x Contratos em Aberto'!$N$2,Resumo!H19,NA()) ->  | U18: =IF(Resumo!H19>'ETTJ x Contratos em Aberto'!$N$2,Resumo!J19,NA()) -> 
Q19: =Resumo!D20 -> 2024-10-01 | R19: =Resumo!B20 -> V24 | S19: =Resumo!G20 -> 0.1343 | T19: =IF(Resumo!H20>'ETTJ x Contratos em Aberto'!$N$2,Resumo!H20,NA()) ->  | U19: =IF(Resumo!H20>'ETTJ x Contratos em Aberto'!$N$2,Resumo!J20,NA()) -> 
Q20: =Resumo!D21 -> 2025-01-02 | R20: =Resumo!B21 -> F25 | S20: =Resumo!G21 -> 0.1327 | T20: =IF(Resumo!H21>'ETTJ x Contratos em Aberto'!$N$2,Resumo!H21,NA()) -> 2743818 | U20: =IF(Resumo!H21>'ETTJ x Contratos em Aberto'!$N$2,Resumo!J21,NA()) -> -15.89379457
Q21: =Resumo!D22 -> 2025-04-01 | R21: =Resumo!B22 -> J25 | S21: =Resumo!G22 -> 0.1324 | T21: =IF(Resumo!H22>'ETTJ x Contratos em Aberto'!$N$2,Resumo!H22,NA()) ->  | U21: =IF(Resumo!H22>'ETTJ x Contratos em Aberto'!$N$2,Resumo!J22,NA()) -> 
Q22: =Resumo!D23 -> 2025-07-01 | R22: =Resumo!B23 -> N25 | S22: =Resumo!G23 -> 0.1319 | T22: =IF(Resumo!H23>'ETTJ x Contratos em Aberto'!$N$2,Resumo!H23,NA()) ->  | U22: =IF(Resumo!H23>'ETTJ x Contratos em Aberto'!$N$2,Resumo!J23,NA()) -> 
Q23: =Resumo!D24 -> 2025-10-01 | R23: =Resumo!B24 -> V25 | S23: =Resumo!G24 -> 0.1322 | T23: =IF(Resumo!H24>'ETTJ x Contratos em Aberto'!$N$2,Resumo!H24,NA()) ->  | U23: =IF(Resumo!H24>'ETTJ x Contratos em Aberto'!$N$2,Resumo!J24,NA()) -> 
Q24: =Resumo!D25 -> 2026-01-02 | R24: =Resumo!B25 -> F26 | S24: =Resumo!G25 -> 0.1318 | T24: =IF(Resumo!H25>'ETTJ x Contratos em Aberto'!$N$2,Resumo!H25,NA()) ->  | U24: =IF(Resumo!H25>'ETTJ x Contratos em Aberto'!$N$2,Resumo!J25,NA()) -> 
Q25: =Resumo!D26 -> 2026-04-01 | R25: =Resumo!B26 -> J26 | S25: =Resumo!G26 -> 0.1319 | T25: =IF(Resumo!H26>'ETTJ x Contratos em Aberto'!$N$2,Resumo!H26,NA()) ->  | U25: =IF(Resumo!H26>'ETTJ x Contratos em Aberto'!$N$2,Resumo!J26,NA()) -> 
Q26: =Resumo!D27 -> 2026-07-01 | R26: =Resumo!B27 -> N26 | S26: =Resumo!G27 -> 0.1318 | T26: =IF(Resumo!H27>'ETTJ x Contratos em Aberto'!$N$2,Resumo!H27,NA()) ->  | U26: =IF(Resumo!H27>'ETTJ x Contratos em Aberto'!$N$2,Resumo!J27,NA()) -> 
Q27: =Resumo!D28 -> 2026-10-01 | R27: =Resumo!B28 -> V26 | S27: =Resumo!G28 -> 0.1327 | T27: =IF(Resumo!H28>'ETTJ x Contratos em Aberto'!$N$2,Resumo!H28,NA()) ->  | U27: =IF(Resumo!H28>'ETTJ x Contratos em Aberto'!$N$2,Resumo!J28,NA()) -> 
Q28: =Resumo!D29 -> 2027-01-04 | R28: =Resumo!B29 -> F27 | S28: =Resumo!G29 -> 0.1324 | T28: =IF(Resumo!H29>'ETTJ x Contratos em Aberto'!$N$2,Resumo!H29,NA()) ->  | U28: =IF(Resumo!H29>'ETTJ x Contratos em Aberto'!$N$2,Resumo!J29,NA()) -> 
Q29: =Resumo!D30 -> 2027-04-01 | R29: =Resumo!B30 -> J27 | S29: =Resumo!G30 -> 0.1322 | T29: =IF(Resumo!H30>'ETTJ x Contratos em Aberto'!$N$2,Resumo!H30,NA()) ->  | U29: =IF(Resumo!H30>'ETTJ x Contratos em Aberto'!$N$2,Resumo!J30,NA()) -> 
Q30: =Resumo!D31 -> 2027-07-01 | R30: =Resumo!B31 -> N27 | S30: =Resumo!G31 -> 0.1326 | T30: =IF(Resumo!H31>'ETTJ x Contratos em Aberto'!$N$2,Resumo!H31,NA()) ->  | U30: =IF(Resumo!H31>'ETTJ x Contratos em Aberto'!$N$2,Resumo!J31,NA()) -> 
Q31: =Resumo!D32 -> 2028-01-03 | R31: =Resumo!B32 -> F28 | S31: =Resumo!G32 -> 0.1328 | T31: =IF(Resumo!H32>'ETTJ x Contratos em Aberto'!$N$2,Resumo!H32,NA()) ->  | U31: =IF(Resumo!H32>'ETTJ x Contratos em Aberto'!$N$2,Resumo!J32,NA()) -> 
Q32: =Resumo!D33 -> 2029-01-02 | R32: =Resumo!B33 -> F29 | S32: =Resumo!G33 -> 0.1334 | T32: =IF(Resumo!H33>'ETTJ x Contratos em Aberto'!$N$2,Resumo!H33,NA()) ->  | U32: =IF(Resumo!H33>'ETTJ x Contratos em Aberto'!$N$2,Resumo!J33,NA()) -> 
Q33: =Resumo!D34 -> 2030-01-02 | R33: =Resumo!B34 -> F30 | S33: =Resumo!G34 -> 0.1336 | T33: =IF(Resumo!H34>'ETTJ x Contratos em Aberto'!$N$2,Resumo!H34,NA()) ->  | U33: =IF(Resumo!H34>'ETTJ x Contratos em Aberto'!$N$2,Resumo!J34,NA()) -> 
Q34: =Resumo!D35 -> 2031-01-02 | R34: =Resumo!B35 -> F31 | S34: =Resumo!G35 -> 0.134 | T34: =IF(Resumo!H35>'ETTJ x Contratos em Aberto'!$N$2,Resumo!H35,NA()) ->  | U34: =IF(Resumo!H35>'ETTJ x Contratos em Aberto'!$N$2,Resumo!J35,NA()) -> 
Q35: =Resumo!D36 -> 2032-01-02 | R35: =Resumo!B36 -> F32 | S35: =Resumo!G36 -> 0.1341 | T35: =IF(Resumo!H36>'ETTJ x Contratos em Aberto'!$N$2,Resumo!H36,NA()) ->  | U35: =IF(Resumo!H36>'ETTJ x Contratos em Aberto'!$N$2,Resumo!J36,NA()) -> 
Q36: =Resumo!D37 -> 2033-01-03 | R36: =Resumo!B37 -> F33 | S36: =Resumo!G37 -> 0.1343 | T36: =IF(Resumo!H37>'ETTJ x Contratos em Aberto'!$N$2,Resumo!H37,NA()) ->  | U36: =IF(Resumo!H37>'ETTJ x Contratos em Aberto'!$N$2,Resumo!J37,NA()) -> 
Q37: =Resumo!D38 -> 2034-01-02 | R37: =Resumo!B38 -> F34 | S37: =Resumo!G38 -> 0.1345 | T37: =IF(Resumo!H38>'ETTJ x Contratos em Aberto'!$N$2,Resumo!H38,NA()) ->  | U37: =IF(Resumo!H38>'ETTJ x Contratos em Aberto'!$N$2,Resumo!J38,NA()) -> 
Q38: =Resumo!D39 -> 2035-01-02 | R38: =Resumo!B39 -> F35 | S38: =Resumo!G39 -> 0.1345 | T38: =IF(Resumo!H39>'ETTJ x Contratos em Aberto'!$N$2,Resumo!H39,NA()) ->  | U38: =IF(Resumo!H39>'ETTJ x Contratos em Aberto'!$N$2,Resumo!J39,NA()) -> 
Q39: =Resumo!D40 -> 2036-01-02 | R39: =Resumo!B40 -> F36 | S39: =Resumo!G40 -> 0.1347 | T39: =IF(Resumo!H40>'ETTJ x Contratos em Aberto'!$N$2,Resumo!H40,NA()) ->  | U39: =IF(Resumo!H40>'ETTJ x Contratos em Aberto'!$N$2,Resumo!J40,NA()) -> 
Q40: =Resumo!D41 -> 2037-01-02 | R40: =Resumo!B41 -> F37 | S40: =Resumo!G41 -> 0.1347 | T40: =IF(Resumo!H41>'ETTJ x Contratos em Aberto'!$N$2,Resumo!H41,NA()) ->  | U40: =IF(Resumo!H41>'ETTJ x Contratos em Aberto'!$N$2,Resumo!J41,NA()) -> 

Sheet Anbima LTN
A1: Títulos Públicos Federais | K1: 2022-07-22
AD2: Escolha do Papel | AG2: Preço=f(i)
A3: Papel PREFIXADO | C3: LTN - Taxa (% a.a.)/252 | AD3: LTN | AE3: 2026-01-01 | AG3: i (% a.a.) | AH3: Preço
A4: Código SELIC | B4: Data Base/Emissão | C4: Data de Vencimento | D4: Tx. Compra | E4: Tx. Venda | F4: Tx. Indicativas | G4: PU | H4: Intervalo Indicativo | M4: Vencimento | N4: Liquidação | O4: Dias | P4: Taxa Pré LTN | Q4: Preço | R4: Taxa Pré B3 | S4: Spread | AD4: Vencimento | AE4: =VLOOKUP(AE3,$M$6:$S$17,2,FALSE) -> 2026-01-02 | AG4: =AG5-1% -> 0.053194 | AH4: =1000/(1+AG4)^($AE$5/252) -> 836.5100217
H5: Mínimo (D0) | I5: Máximo (D0) | J5: Mínimo (D+1) | K5: Máximo (D+1) | O5: Úteis | P5: (% a.a.) | R5: (% a.a.) | S5: (% a.a.) | AD5: Prazo (DU) | AE5: =VLOOKUP(AE3,$M$6:$S$17,3,FALSE) -> 868 | AG5: 0.063194 | AH5: =1000/(1+AG5)^($AE$5/252) -> 809.7196216
A6: 100000 | B6: 2020-07-03 | C6: 2022-10-01 | D6: 13.6223 | E6: 13.6027 | F6: 13.6125 | G6: 974.995821 | H6: 13.4845 | I6: 13.9483 | J6: 13.4881 | K6: 13.9511 | M6: =C6 -> 2022-10-01 | N6: =WORKDAY(M6-1,1,Feriados!$A$2:$A$937) -> 2022-10-03 | O6: =NETWORKDAYS($K$1,N6,Feriados!$A$2:$A$937)-1 -> 50 | P6: =F6/100 -> 0.136125 | Q6: =1000/(1+P6)^(O6/252) -> 974.995822 | R6: =InterpolaPre(O6) -> 0.1359 | S6: =(1+P6)/(1+R6)-1 -> 0.000198080817 | AD6: Taxa (% a.a.) | AE6: =VLOOKUP(AE3,$M$6:$S$17,4,FALSE) -> 0.133194 | AG6: 0.073194 | AH6: 784.0261002
A7: 100000 | B7: 2016-01-20 | C7: 2023-01-01 | D7: 13.8867 | E7: 13.8687 | F7: 13.878 | G7: 943.877493 | H7: 13.7529 | I7: 14.3776 | J7: 13.7111 | K7: 14.3307 | M7: =C7 -> 2023-01-01 | N7: =WORKDAY(M7-1,1,Feriados!$A$2:$A$937) -> 2023-01-02 | O7: =NETWORKDAYS($K$1,N7,Feriados!$A$2:$A$937)-1 -> 112 | P7: =F7/100 -> 0.13878 | Q7: =1000/(1+P7)^(O7/252) -> 943.8774935 | R7: =InterpolaPre(O7) -> 0.1386 | S7: =(1+P7)/(1+R7)-1 -> 0.0001580888811 | AD7: Preço Unitário | AE7: =1000/(1+AE6)^(AE5/252) -> 650.0577965 | AG7: 0.083194 | AH7: 759.3749466
A8: 100000 | B8: 2022-01-07 | C8: 2023-04-01 | D8: 14.0055 | E8: 13.9842 | F8: 13.9957 | G8: 913.049069 | H8: 13.857 | I8: 14.6191 | J8: 13.768 | K8: 14.5291 | M8: 2023-04-01 | N8: =WORKDAY(M8-1,1,Feriados!$A$2:$A$937) -> 2023-04-03 | O8: =NETWORKDAYS($K$1,N8,Feriados!$A$2:$A$937)-1 -> 175 | P8: 0.139957 | Q8: 913.0490695 | R8: =InterpolaPre(O8) -> 0.1398 | S8: 0.0001377434638 | AD8: Taxa B3 (% a.a.) | AE8: =VLOOKUP(AE3,$M$6:$S$17,6,FALSE) -> 0.1318 | AG8: 0.093194 | AH8: 735.7148273
A9: 100000 | B9: 2019-04-05 | C9: 2023-07-01 | D9: 14.0557 | E9: 14.0435 | F9: 14.05 | G9: 884.157851 | H9: 13.9256 | I9: 14.7469 | J9: 13.801 | K9: 14.6216 | M9: 2023-07-01 | N9: =WORKDAY(M9-1,1,Feriados!$A$2:$A$937) -> 2023-07-03 | O9: =NETWORKDAYS($K$1,N9,Feriados!$A$2:$A$937)-1 -> 236 | P9: 0.1405 | Q9: 884.157852 | R9: =InterpolaPre(O9) -> 0.1402 | S9: 0.0002631117348 | AD9: Spread (% a.a.) | AE9: =VLOOKUP(AE3,$M$6:$S$17,7,FALSE) -> 0.001231666372 | AG9: 0.103194 | AH9: 712.9973742
A10: 100000 | B10: 2022-07-08 | C10: 2023-10-01 | D10: 13.9814 | E10: 13.9669 | F10: 13.975 | G10: 855.794562 | H10: 13.8589 | I10: 14.7335 | J10: 13.6989 | K10: 14.5734 | M10: 2023-10-01 | N10: =WORKDAY(M10-1,1,Feriados!$A$2:$A$937) -> 2023-10-02 | O10: =NETWORKDAYS($K$1,N10,Feriados!$A$2:$A$937)-1 -> 300 | P10: 0.13975 | Q10: 855.7945625 | R10: =InterpolaPre(O10) -> 0.1394 | S10: 0.0003071792171 | AD10: DV01 | AE10: =1000/(1+AE6+0.01%)^(AE5/252)-1000/(1+AE6)^(AE5/252) -> -0.1975521354 | AG10: 0.113194 | AH10: 691.1769887
A11: 100000 | B11: 2020-01-03 | C11: 2024-01-01 | D11: 13.8865 | E11: 13.8739 | F11: 13.8809 | G11: 830.102762 | H11: 13.7841 | I11: 14.6733 | J11: 13.6013 | K11: 14.49 | M11: 2024-01-01 | N11: =WORKDAY(M11-1,1,Feriados!$A$2:$A$937) -> 2024-01-02 | O11: =NETWORKDAYS($K$1,N11,Feriados!$A$2:$A$937)-1 -> 361 | P11: 0.138809 | Q11: 830.1027621 | R11: =InterpolaPre(O11) -> 0.1381 | S11: 0.0006229681047 | AG11: =AG12-1% -> 0.123194 | AH11: 670.2106599
A12: 100000 | B12: 2022-01-07 | C12: 2024-04-01 | D12: 13.7766 | E12: 13.766 | F12: 13.7712 | G12: 805.690174 | H12: 13.6491 | I12: 14.5651 | J12: 13.467 | K12: 14.3823 | M12: 2024-04-01 | N12: =WORKDAY(M12-1,1,Feriados!$A$2:$A$937) -> 2024-04-01 | O12: =NETWORKDAYS($K$1,N12,Feriados!$A$2:$A$937)-1 -> 422 | P12: 0.137712 | Q12: 805.6901747 | R12: =InterpolaPre(O12) -> 0.137 | S12: 0.0006262093228 | AG12: =AE6 -> 0.133194 | AH12: 650.0577965 | AI12: =AH12 -> 650.0577965
A13: 100000 | B13: 2021-01-08 | C13: 2024-07-01 | D13: 13.6213 | E13: 13.608 | F13: 13.615 | G13: 782.182919 | H13: 13.4437 | I13: 14.395 | J13: 13.2718 | K13: 14.2227 | M13: 2024-07-01 | N13: =WORKDAY(M13-1,1,Feriados!$A$2:$A$937) -> 2024-07-01 | O13: =NETWORKDAYS($K$1,N13,Feriados!$A$2:$A$937)-1 -> 485 | P13: 0.13615 | Q13: 782.1829196 | R13: =InterpolaPre(O13) -> 0.1354 | S13: 0.000660560155 | AG13: =AG12+1% -> 0.143194 | AH13: 630.6800711
A14: 100000 | B14: 2022-07-08 | C14: 2024-10-01 | D14: 13.5268 | E14: 13.5121 | F14: 13.5189 | G14: 757.867005 | H14: 13.295 | I14: 14.2841 | J14: 13.1379 | K14: 14.1264 | M14: 2024-10-01 | N14: =WORKDAY(M14-1,1,Feriados!$A$2:$A$937) -> 2024-10-01 | O14: =NETWORKDAYS($K$1,N14,Feriados!$A$2:$A$937)-1 -> 551 | P14: 0.135189 | Q14: 757.8670057 | R14: =InterpolaPre(O14) -> 0.1343 | S14: 0.0007837432778 | AG14: =AG13+1% -> 0.153194 | AH14: 612.0412753
A15: 100000 | B15: 2018-02-01 | C15: 2025-01-01 | D15: 13.3464 | E15: 13.3328 | F15: 13.34 | G15: 736.680331 | H15: 13.1531 | I15: 14.1751 | J15: 12.9285 | K15: 13.9501 | M15: 2025-01-01 | N15: =WORKDAY(M15-1,1,Feriados!$A$2:$A$937) -> 2025-01-02 | O15: =NETWORKDAYS($K$1,N15,Feriados!$A$2:$A$937)-1 -> 615 | P15: 0.1334 | Q15: 736.6803317 | R15: =InterpolaPre(O15) -> 0.1327 | S15: 0.0006179924075 | AG15: 0.163194 | AH15: 594.1071857
A16: 100000 | B16: 2022-01-07 | C16: 2025-07-01 | D16: 13.3157 | E16: 13.3057 | F16: 13.3111 | G16: 693.864397 | H16: 13.0479 | I16: 14.107 | J16: 12.8572 | K16: 13.9162 | M16: 2025-07-01 | N16: =WORKDAY(M16-1,1,Feriados!$A$2:$A$937) -> 2025-07-01 | O16: =NETWORKDAYS($K$1,N16,Feriados!$A$2:$A$937)-1 -> 737 | P16: 0.133111 | Q16: 693.8643972 | R16: =InterpolaPre(O16) -> 0.1319 | S16: 0.001069882498 | AG16: 0.173194 | AH16: 576.8454393
A17: 100000 | B17: 2020-02-03 | C17: 2026-01-01 | D17: 13.3237 | E17: 13.312 | F17: 13.3194 | G17: 650.057796 | H17: 13.0527 | I17: 14.1244 | J17: 12.838 | K17: 13.9097 | M17: 2026-01-01 | N17: =WORKDAY(M17-1,1,Feriados!$A$2:$A$937) -> 2026-01-02 | O17: =NETWORKDAYS($K$1,N17,Feriados!$A$2:$A$937)-1 -> 868 | P17: 0.133194 | Q17: 650.0577965 | R17: =InterpolaPre(O17) -> 0.1318 | S17: 0.001231666372 | AG17: 0.183194 | AH17: 560.2254176
AG18: 0.193194 | AH18: 544.2181387
AG19: 0.203194 | AH19: 528.7961575

Sheet Legendas
B7: Código | C7: Mês | D7: Mês Num
B8: F | C8: Janeiro | D8: 01
B9: G | C9: Fevereiro | D9: 02
B10: H | C10: Março | D10: 03
B11: J | C11: Abril | D11: 04
B12: K | C12: Maio | D12: 05
B13: M | C13: Junho | D13: 06
B14: N | C14: Julho | D14: 07
B15: Q | C15: Agosto | D15: 08
B16: U | C16: Setembro | D16: 09
B17: V | C17: Outubro | D17: 10
B18: X | C18: Novembro | D18: 11
B19: Z | C19: Dezembro | D19: 12

Sheet Feriados
A1: Data | B1: Dia da Semana | C1: Feriado
A2: 2001-01-01 | B2: segunda-feira | C2: Confraternização Universal
A3: 2001-02-26 | B3: segunda-feira | C3: Carnaval
A4: 2001-02-27 | B4: terça-feira | C4: Carnaval
A5: 2001-04-13 | B5: sexta-feira | C5: Paixão de Cristo
A6: 2001-04-21 | B6: sábado | C6: Tiradentes
A7: 2001-05-01 | B7: terça-feira | C7: Dia do Trabalho
A8: 2001-06-14 | B8: quinta-feira | C8: Corpus Christi
A9: 2001-09-07 | B9: sexta-feira | C9: Independência do Brasil
A10: 2001-10-12 | B10: sexta-feira | C10: Nossa Sr.a Aparecida - Padroeira do Brasil
A11: 2001-11-02 | B11: sexta-feira | C11: Finados
A12: 2001-11-15 | B12: quinta-feira | C12: Proclamação da República
A13: 2001-12-25 | B13: terça-feira | C13: Natal
A14: 2002-01-01 | B14: terça-feira | C14: Confraternização Universal
A15: 2002-02-11 | B15: segunda-feira | C15: Carnaval
A16: 2002-02-12 | B16: terça-feira | C16: Carnaval
A17: 2002-03-29 | B17: sexta-feira | C17: Paixão de Cristo
A18: 2002-04-21 | B18: domingo | C18: Tiradentes
A19: 2002-05-01 | B19: quarta-feira | C19: Dia do Trabalho
A20: 2002-05-30 | B20: quinta-feira | C20: Corpus Christi
A21: 2002-09-07 | B21: sábado | C21: Independência do Brasil
A22: 2002-10-12 | B22: sábado | C22: Nossa Sr.a Aparecida - Padroeira do Brasil
A23: 2002-11-02 | B23: sábado | C23: Finados
A24: 2002-11-15 | B24: sexta-feira | C24: Proclamação da República
A25: 2002-12-25 | B25: quarta-feira | C25: Natal
A26: 2003-01-01 | B26: quarta-feira | C26: Confraternização Universal
A27: 2003-03-03 | B27: segunda-feira | C27: Carnaval
A28: 2003-03-04 | B28: terça-feira | C28: Carnaval
A29: 2003-04-18 | B29: sexta-feira | C29: Paixão de Cristo
A30: 2003-04-21 | B30: segunda-feira | C30: Tiradentes
A31: 2003-05-01 | B31: quinta-feira | C31: Dia do Trabalho
A32: 2003-06-19 | B32: quinta-feira | C32: Corpus Christi
A33: 2003-09-07 | B33: domingo | C33: Independência do Brasil
A34: 2003-10-12 | B34: domingo | C34: Nossa Sr.a Aparecida - Padroeira do Brasil
A35: 2003-11-02 | B35: domingo | C35: Finados
A36: 2003-11-15 | B36: sábado | C36: Proclamação da República
A37: 2003-12-25 | B37: quinta-feira | C37: Natal
A38: 2004-01-01 | B38: quinta-feira | C38: Confraternização Universal
A39: 2004-02-23 | B39: segunda-feira | C39: Carnaval
A40: 2004-02-24 | B40: terça-feira | C40: Carnaval
A41: 2004-04-09 | B41: sexta-feira | C41: Paixão de Cristo
A42: 2004-04-21 | B42: quarta-feira | C42: Tiradentes
A43: 2004-05-01 | B43: sábado | C43: Dia do Trabalho
A44: 2004-06-10 | B44: quinta-feira | C44: Corpus Christi
A45: 2004-09-07 | B45: terça-feira | C45: Independência do Brasil
A46: 2004-10-12 | B46: terça-feira | C46: Nossa Sr.a Aparecida - Padroeira do Brasil
A47: 2004-11-02 | B47: terça-feira | C47: Finados
A48: 2004-11-15 | B48: segunda-feira | C48: Proclamação da República
A49: 2004-12-25 | B49: sábado | C49: Natal
A50: 2005-01-01 | B50: sábado | C50: Confraternização Universal
A51: 2005-02-07 | B51: segunda-feira | C51: Carnaval
A52: 2005-02-08 | B52: terça-feira | C52: Carnaval
A53: 2005-03-25 | B53: sexta-feira | C53: Paixão de Cristo
A54: 2005-04-21 | B54: quinta-feira | C54: Tiradentes
A55: 2005-05-01 | B55: domingo | C55: Dia do Trabalho
A56: 2005-05-26 | B56: quinta-feira | C56: Corpus Christi
A57: 2005-09-07 | B57: quarta-feira | C57: Independência do Brasil
A58: 2005-10-12 | B58: quarta-feira | C58: Nossa Sr.a Aparecida - Padroeira do Brasil
A59: 2005-11-02 | B59: quarta-feira | C59: Finados
A60: 2005-11-15 | B60: terça-feira | C60: Proclamação da República
A61: 2005-12-25 | B61: domingo | C61: Natal
A62: 2006-01-01 | B62: domingo | C62: Confraternização Universal
A63: 2006-02-27 | B63: segunda-feira | C63: Carnaval
A64: 2006-02-28 | B64: terça-feira | C64: Carnaval
A65: 2006-04-14 | B65: sexta-feira | C65: Paixão de Cristo
A66: 2006-04-21 | B66: sexta-feira | C66: Tiradentes
A67: 2006-05-01 | B67: segunda-feira | C67: Dia do Trabalho
A68: 2006-06-15 | B68: quinta-feira | C68: Corpus Christi
A69: 2006-09-07 | B69: quinta-feira | C69: Independência do Brasil
A70: 2006-10-12 | B70: quinta-feira | C70: Nossa Sr.a Aparecida - Padroeira do Brasil
A71: 2006-11-02 | B71: quinta-feira | C71: Finados
A72: 2006-11-15 | B72: quarta-feira | C72: Proclamação da República
A73: 2006-12-25 | B73: segunda-feira | C73: Natal
A74: 2007-01-01 | B74: segunda-feira | C74: Confraternização Universal
A75: 2007-02-19 | B75: segunda-feira | C75: Carnaval
A76: 2007-02-20 | B76: terça-feira | C76: Carnaval
A77: 2007-04-06 | B77: sexta-feira | C77: Paixão de Cristo
A78: 2007-04-21 | B78: sábado | C78: Tiradentes
A79: 2007-05-01 | B79: terça-feira | C79: Dia do Trabalho
A80: 2007-06-07 | B80: quinta-feira | C80: Corpus Christi
A81: 2007-09-07 | B81: sexta-feira | C81: Independência do Brasil
A82: 2007-10-12 | B82: sexta-feira | C82: Nossa Sr.a Aparecida - Padroeira do Brasil
A83: 2007-11-02 | B83: sexta-feira | C83: Finados
A84: 2007-11-15 | B84: quinta-feira | C84: Proclamação da República
A85: 2007-12-25 | B85: terça-feira | C85: Natal
A86: 2008-01-01 | B86: terça-feira | C86: Confraternização Universal
A87: 2008-02-04 | B87: segunda-feira | C87: Carnaval
A88: 2008-02-05 | B88: terça-feira | C88: Carnaval
A89: 2008-03-21 | B89: sexta-feira | C89: Paixão de Cristo
A90: 2008-04-21 | B90: segunda-feira | C90: Tiradentes
A91: 2008-05-01 | B91: quinta-feira | C91: Dia do Trabalho
A92: 2008-05-22 | B92: quinta-feira | C92: Corpus Christi
A93: 2008-09-07 | B93: domingo | C93: Independência do Brasil
A94: 2008-10-12 | B94: domingo | C94: Nossa Sr.a Aparecida - Padroeira do Brasil
A95: 2008-11-02 | B95: domingo | C95: Finados
A96: 2008-11-15 | B96: sábado | C96: Proclamação da República
A97: 2008-12-25 | B97: quinta-feira | C97: Natal
A98: 2009-01-01 | B98: quinta-feira | C98: Confraternização Universal
A99: 2009-02-23 | B99: segunda-feira | C99: Carnaval
A100: 2009-02-24 | B100: terça-feira | C100: Carnaval
A101: 2009-04-10 | B101: sexta-feira | C101: Paixão de Cristo
A102: 2009-04-21 | B102: terça-feira | C102: Tiradentes
A103: 2009-05-01 | B103: sexta-feira | C103: Dia do Trabalho
A104: 2009-06-11 | B104: quinta-feira | C104: Corpus Christi
A105: 2009-09-07 | B105: segunda-feira | C105: Independência do Brasil
A106: 2009-10-12 | B106: segunda-feira | C106: Nossa Sr.a Aparecida - Padroeira do Brasil
A107: 2009-11-02 | B107: segunda-feira | C107: Finados
A108: 2009-11-15 | B108: domingo | C108: Proclamação da República
A109: 2009-12-25 | B109: sexta-feira | C109: Natal
A110: 2010-01-01 | B110: sexta-feira | C110: Confraternização Universal
A111: 2010-02-15 | B111: segunda-feira | C111: Carnaval
A112: 2010-02-16 | B112: terça-feira | C112: Carnaval
A113: 2010-04-02 | B113: sexta-feira | C113: Paixão de Cristo
A114: 2010-04-21 | B114: quarta-feira | C114: Tiradentes
A115: 2010-05-01 | B115: sábado | C115: Dia do Trabalho
A116: 2010-06-03 | B116: quinta-feira | C116: Corpus Christi
A117: 2010-09-07 | B117: terça-feira | C117: Independência do Brasil
A118: 2010-10-12 | B118: terça-feira | C118: Nossa Sr.a Aparecida - Padroeira do Brasil
A119: 2010-11-02 | B119: terça-feira | C119: Finados
A120: 2010-11-15 | B120: segunda-feira | C120: Proclamação da República
A121: 2010-12-25 | B121: sábado | C121: Natal
A122: 2011-01-01 | B122: sábado | C122: Confraternização Universal
A123: 2011-03-07 | B123: segunda-feira | C123: Carnaval
A124: 2011-03-08 | B124: terça-feira | C124: Carnaval
A125: 2011-04-21 | B125: quinta-feira | C125: Paixão de Cristo
A126: 2011-04-22 | B126: sexta-feira | C126: Tiradentes
A127: 2011-05-01 | B127: domingo | C127: Dia do Trabalho
A128: 2011-06-23 | B128: quinta-feira | C128: Corpus Christi
A129: 2011-09-07 | B129: quarta-feira | C129: Independência do Brasil
A130: 2011-10-12 | B130: quarta-feira | C130: Nossa Sr.a Aparecida - Padroeira do Brasil
A131: 2011-11-02 | B131: quarta-feira | C131: Finados
A132: 2011-11-15 | B132: terça-feira | C132: Proclamação da República
A133: 2011-12-25 | B133: domingo | C133: Natal
A134: 2012-01-01 | B134: domingo | C134: Confraternização Universal
A135: 2012-02-20 | B135: segunda-feira | C135: Carnaval
A136: 2012-02-21 | B136: terça-feira | C136: Carnaval
A137: 2012-04-06 | B137: sexta-feira | C137: Paixão de Cristo
A138: 2012-04-21 | B138: sábado | C138: Tiradentes
A139: 2012-05-01 | B139: terça-feira | C139: Dia do Trabalho
A140: 2012-06-07 | B140: quinta-feira | C140: Corpus Christi
A141: 2012-09-07 | B141: sexta-feira | C141: Independência do Brasil
A142: 2012-10-12 | B142: sexta-feira | C142: Nossa Sr.a Aparecida - Padroeira do Brasil
A143: 2012-11-02 | B143: sexta-feira | C143: Finados
A144: 2012-11-15 | B144: quinta-feira | C144: Proclamação da República
A145: 2012-12-25 | B145: terça-feira | C145: Natal
A146: 2013-01-01 | B146: terça-feira | C146: Confraternização Universal
A147: 2013-02-11 | B147: segunda-feira | C147: Carnaval
A148: 2013-02-12 | B148: terça-feira | C148: Carnaval
A149: 2013-03-29 | B149: sexta-feira | C149: Paixão de Cristo
A150: 2013-04-21 | B150: domingo | C150: Tiradentes
A151: 2013-05-01 | B151: quarta-feira | C151: Dia do Trabalho
A152: 2013-05-30 | B152: quinta-feira | C152: Corpus Christi
A153: 2013-09-07 | B153: sábado | C153: Independência do Brasil
A154: 2013-10-12 | B154: sábado | C154: Nossa Sr.a Aparecida - Padroeira do Brasil
A155: 2013-11-02 | B155: sábado | C155: Finados
A156: 2013-11-15 | B156: sexta-feira | C156: Proclamação da República
A157: 2013-12-25 | B157: quarta-feira | C157: Natal
A158: 2014-01-01 | B158: quarta-feira | C158: Confraternização Universal
A159: 2014-03-03 | B159: segunda-feira | C159: Carnaval
A160: 2014-03-04 | B160: terça-feira | C160: Carnaval
A161: 2014-04-18 | B161: sexta-feira | C161: Paixão de Cristo
A162: 2014-04-21 | B162: segunda-feira | C162: Tiradentes
A163: 2014-05-01 | B163: quinta-feira | C163: Dia do Trabalho
A164: 2014-06-19 | B164: quinta-feira | C164: Corpus Christi
A165: 2014-09-07 | B165: domingo | C165: Independência do Brasil
A166: 2014-10-12 | B166: domingo | C166: Nossa Sr.a Aparecida - Padroeira do Brasil
A167: 2014-11-02 | B167: domingo | C167: Finados
A168: 2014-11-15 | B168: sábado | C168: Proclamação da República
A169: 2014-12-25 | B169: quinta-feira | C169: Natal
A170: 2015-01-01 | B170: quinta-feira | C170: Confraternização Universal
A171: 2015-02-16 | B171: segunda-feira | C171: Carnaval
A172: 2015-02-17 | B172: terça-feira | C172: Carnaval
A173: 2015-04-03 | B173: sexta-feira | C173: Paixão de Cristo
A174: 2015-04-21 | B174: terça-feira | C174: Tiradentes
A175: 2015-05-01 | B175: sexta-feira | C175: Dia do Trabalho
A176: 2015-06-04 | B176: quinta-feira | C176: Corpus Christi
A177: 2015-09-07 | B177: segunda-feira | C177: Independência do Brasil
A178: 2015-10-12 | B178: segunda-feira | C178: Nossa Sr.a Aparecida - Padroeira do Brasil
A179: 2015-11-02 | B179: segunda-feira | C179: Finados
A180: 2015-11-15 | B180: domingo | C180: Proclamação da República
A181: 2015-12-25 | B181: sexta-feira | C181: Natal
A182: 2016-01-01 | B182: sexta-feira | C182: Confraternização Universal
A183: 2016-02-08 | B183: segunda-feira | C183: Carnaval
A184: 2016-02-09 | B184: terça-feira | C184: Carnaval
A185: 2016-03-25 | B185: sexta-feira | C185: Paixão de Cristo
A186: 2016-04-21 | B186: quinta-feira | C186: Tiradentes
A187: 2016-05-01 | B187: domingo | C187: Dia do Trabalho
A188: 2016-05-26 | B188: quinta-feira | C188: Corpus Christi
A189: 2016-09-07 | B189: quarta-feira | C189: Independência do Brasil
A190: 2016-10-12 | B190: quarta-feira | C190: Nossa Sr.a Aparecida - Padroeira do Brasil
A191: 2016-11-02 | B191: quarta-feira | C191: Finados
A192: 2016-11-15 | B192: terça-feira | C192: Proclamação da República
A193: 2016-12-25 | B193: domingo | C193: Natal
A194: 2017-01-01 | B194: domingo | C194: Confraternização Universal
A195: 2017-02-27 | B195: segunda-feira | C195: Carnaval
A196: 2017-02-28 | B196: terça-feira | C196: Carnaval
A197: 2017-04-14 | B197: sexta-feira | C197: Paixão de Cristo
A198: 2017-04-21 | B198: sexta-feira | C198: Tiradentes
A199: 2017-05-01 | B199: segunda-feira | C199: Dia do Trabalho
A200: 2017-06-15 | B200: quinta-feira | C200: Corpus Christi
... 738 more rows
